Workbook

Sheet AVISO LEGAL
H2: Fecha de actualización: | J2: 2018-12-11
J23: www.ree.es

Sheet Componentes mes nacional
O1: 8
M4: Sistema eléctrico
M5: Horizonte temporal
M6: Periodo
C8: Ene. | D8: Feb. | E8: Mar. | F8: Abr. | G8: May. | H8: Jun. | I8: Jul. | J8: Ago. | K8: Sep. | L8: Oct. | M8: Nov. | N8: Dic. | O8: =OFFSET(Año!B22,($O$1-1),0) -> 2018
B10: Variación mensual | C10: =OFFSET(Componentes!C24,0,($O$1-1)*13) -> -2.137463051 | D10: =OFFSET(Componentes!D24,0,($O$1-1)*13) -> 6.629413235 | E10: =OFFSET(Componentes!E24,0,($O$1-1)*13) -> 4.540205878 | F10: =OFFSET(Componentes!F24,0,($O$1-1)*13) -> 4.807800445 | G10: =OFFSET(Componentes!G24,0,($O$1-1)*13) -> -0.7271242602 | H10: =OFFSET(Componentes!H24,0,($O$1-1)*13) -> -6.196856137 | I10: =OFFSET(Componentes!I24,0,($O$1-1)*13) -> -1.010089912 | J10: =OFFSET(Componentes!J24,0,($O$1-1)*13) -> 0.7459769056 | K10: =OFFSET(Componentes!K24,0,($O$1-1)*13) -> 3.002789221 | L10: =OFFSET(Componentes!L24,0,($O$1-1)*13) -> 0.5404041211 | M10: =OFFSET(Componentes!M24,0,($O$1-1)*13) -> 0.1041267942 | N10: =OFFSET(Componentes!N24,0,($O$1-1)*13) -> - | O10: =OFFSET(Componentes!O24,0,($O$1-1)*13) -> 0.812770656
B12: Componentes (1)
B13: Laboralidad | C13: =OFFSET(Componentes!C26,0,($O$1-1)*13) -> 1.438919019 | D13: =OFFSET(Componentes!D26,0,($O$1-1)*13) -> -0.1337158188 | E13: =OFFSET(Componentes!E26,0,($O$1-1)*13) -> -2.739174277 | F13: =OFFSET(Componentes!F26,0,($O$1-1)*13) -> 2.198328003 | G13: =OFFSET(Componentes!G26,0,($O$1-1)*13) -> -0.4036455461 | H13: =OFFSET(Componentes!H26,0,($O$1-1)*13) -> -0.4715476797 | I13: =OFFSET(Componentes!I26,0,($O$1-1)*13) -> -0.6562722708 | J13: =OFFSET(Componentes!J26,0,($O$1-1)*13) -> -1.376402616 | K13: =OFFSET(Componentes!K26,0,($O$1-1)*13) -> -1.746863676 | L13: =OFFSET(Componentes!L26,0,($O$1-1)*13) -> 0.8620299856 | M13: =OFFSET(Componentes!M26,0,($O$1-1)*13) -> -0.4221708503 | N13: =OFFSET(Componentes!N26,0,($O$1-1)*13) -> - | O13: =OFFSET(Componentes!O26,0,($O$1-1)*13) -> -0.3151570692
B14: Temperatura (2) | C14: =OFFSET(Componentes!C27,0,($O$1-1)*13) -> -1.634100645 | D14: =OFFSET(Componentes!D27,0,($O$1-1)*13) -> 3.751964354 | E14: =OFFSET(Componentes!E27,0,($O$1-1)*13) -> 2.370192713 | F14: =OFFSET(Componentes!F27,0,($O$1-1)*13) -> 1.086939393 | G14: =OFFSET(Componentes!G27,0,($O$1-1)*13) -> -1.501422414 | H14: =OFFSET(Componentes!H27,0,($O$1-1)*13) -> -2.60145691 | I14: =OFFSET(Componentes!I27,0,($O$1-1)*13) -> -0.3467378364 | J14: =OFFSET(Componentes!J27,0,($O$1-1)*13) -> 0.6264799644 | K14: =OFFSET(Componentes!K27,0,($O$1-1)*13) -> 1.781618884 | L14: =OFFSET(Componentes!L27,0,($O$1-1)*13) -> -0.199547818 | M14: =OFFSET(Componentes!M27,0,($O$1-1)*13) -> 1.430855269 | N14: =OFFSET(Componentes!N27,0,($O$1-1)*13) -> - | O14: =OFFSET(Componentes!O27,0,($O$1-1)*13) -> 0.3542658623
B15: Demanda corregida | C15: =OFFSET(Componentes!C28,0,($O$1-1)*13) -> -1.942281425 | D15: =OFFSET(Componentes!D28,0,($O$1-1)*13) -> 3.0111647 | E15: =OFFSET(Componentes!E28,0,($O$1-1)*13) -> 4.909187443 | F15: =OFFSET(Componentes!F28,0,($O$1-1)*13) -> 1.522533049 | G15: =OFFSET(Componentes!G28,0,($O$1-1)*13) -> 1.1779437 | H15: =OFFSET(Componentes!H28,0,($O$1-1)*13) -> -3.123851547 | I15: =OFFSET(Componentes!I28,0,($O$1-1)*13) -> -0.007079804929 | J15: =OFFSET(Componentes!J28,0,($O$1-1)*13) -> 1.495899557 | K15: =OFFSET(Componentes!K28,0,($O$1-1)*13) -> 2.968034012 | L15: =OFFSET(Componentes!L28,0,($O$1-1)*13) -> -0.1220780466 | M15: =OFFSET(Componentes!M28,0,($O$1-1)*13) -> -0.904557624 | N15: =OFFSET(Componentes!N28,0,($O$1-1)*13) -> - | O15: =OFFSET(Componentes!O28,0,($O$1-1)*13) -> 0.773661863
B17: (1) La suma de los componentes es igual al tanto por ciento de variación de la demanda total.
B18: (2) Una media de las temperaturas máximas diarias por debajo o por encima de los umbrales de invierno y verano respectivamente, produce aumento de la demanda.

Sheet Componentes año nacional
L1: 1
J4: Sistema eléctrico
J5: Horizonte temporal
J6: Periodo
C8: =OFFSET(Componentes!C51,0,($L$1-1)*10) -> 2011 | D8: =OFFSET(Componentes!D51,0,($L$1-1)*10) -> 2012 | E8: =OFFSET(Componentes!E51,0,($L$1-1)*10) -> 2013 | F8: =OFFSET(Componentes!F51,0,($L$1-1)*10) -> 2014 | G8: =OFFSET(Componentes!G51,0,($L$1-1)*10) -> 2015 | H8: =OFFSET(Componentes!H51,0,($L$1-1)*10) -> 2016 | I8: =OFFSET(Componentes!I51,0,($L$1-1)*10) -> 2017 | J8: =OFFSET(Componentes!J51,0,($L$1-1)*10) -> 2018 | K8: =OFFSET(Componentes!K51,0,($L$1-1)*10) -> 2019 | L8: =OFFSET(Componentes!L51,0,($L$1-1)*10) -> 2020
B10: Variación anual | C10: =OFFSET(Componentes!C52,0,($L$1-1)*10) -> -2.05686981 | D10: =OFFSET(Componentes!D52,0,($L$1-1)*10) -> -1.171753179 | E10: =OFFSET(Componentes!E52,0,($L$1-1)*10) -> -2.380686197 | F10: =OFFSET(Componentes!F52,0,($L$1-1)*10) -> -1.088677619 | G10: =OFFSET(Componentes!G52,0,($L$1-1)*10) -> 1.994552026 | H10: =OFFSET(Componentes!H52,0,($L$1-1)*10) -> 0.706870603 | I10: =OFFSET(Componentes!I52,0,($L$1-1)*10) -> 1.209455962 | J10: =OFFSET(Componentes!J52,0,($L$1-1)*10) -> 0.812770656 | K10: =OFFSET(Componentes!K52,0,($L$1-1)*10) -> - | L10: =OFFSET(Componentes!L52,0,($L$1-1)*10) -> -
B12: Componentes (1)
B13: Laboralidad | C13: =OFFSET(Componentes!C54,0,($L$1-1)*10) -> 0.1312403691 | D13: =OFFSET(Componentes!D54,0,($L$1-1)*10) -> -0.2619767551 | E13: =OFFSET(Componentes!E54,0,($L$1-1)*10) -> 0.1707630576 | F13: =OFFSET(Componentes!F54,0,($L$1-1)*10) -> 0.001808773263 | G13: =OFFSET(Componentes!G54,0,($L$1-1)*10) -> -0.04791228624 | H13: =OFFSET(Componentes!H54,0,($L$1-1)*10) -> 0.5651119218 | I13: =OFFSET(Componentes!I54,0,($L$1-1)*10) -> -0.3292575615 | J13: =OFFSET(Componentes!J54,0,($L$1-1)*10) -> -0.3151570692 | K13: =OFFSET(Componentes!K54,0,($L$1-1)*10) -> - | L13: =OFFSET(Componentes!L54,0,($L$1-1)*10) -> -
B14: Temperatura (2) | C14: =OFFSET(Componentes!C55,0,($L$1-1)*10) -> -1.01076966 | D14: =OFFSET(Componentes!D55,0,($L$1-1)*10) -> 0.6962040147 | E14: =OFFSET(Componentes!E55,0,($L$1-1)*10) -> -0.2954900049 | F14: =OFFSET(Componentes!F55,0,($L$1-1)*10) -> -0.9672187586 | G14: =OFFSET(Componentes!G55,0,($L$1-1)*10) -> 0.360737714 | H14: =OFFSET(Componentes!H55,0,($L$1-1)*10) -> 0.04889790649 | I14: =OFFSET(Componentes!I55,0,($L$1-1)*10) -> -0.1275760804 | J14: =OFFSET(Componentes!J55,0,($L$1-1)*10) -> 0.3542658623 | K14: =OFFSET(Componentes!K55,0,($L$1-1)*10) -> - | L14: =OFFSET(Componentes!L55,0,($L$1-1)*10) -> -
B15: Demanda corregida | C15: =OFFSET(Componentes!C56,0,($L$1-1)*10) -> -1.177340519 | D15: =OFFSET(Componentes!D56,0,($L$1-1)*10) -> -1.605980438 | E15: =OFFSET(Componentes!E56,0,($L$1-1)*10) -> -2.25595925 | F15: =OFFSET(Componentes!F56,0,($L$1-1)*10) -> -0.1232676337 | G15: =OFFSET(Componentes!G56,0,($L$1-1)*10) -> 1.681726598 | H15: =OFFSET(Componentes!H56,0,($L$1-1)*10) -> 0.09286077474 | I15: =OFFSET(Componentes!I56,0,($L$1-1)*10) -> 1.666289604 | J15: =OFFSET(Componentes!J56,0,($L$1-1)*10) -> 0.773661863 | K15: =OFFSET(Componentes!K56,0,($L$1-1)*10) -> - | L15: =OFFSET(Componentes!L56,0,($L$1-1)*10) -> -
B17: (1) La suma de los componentes es igual al tanto por ciento de variación de la demanda total.
B18: (2) Una media de las temperaturas máximas diarias por debajo o por encima de los umbrales de invierno y verano respectivamente, produce aumento de la demanda.
B19: =IF(MONTH('AVISO LEGAL'!J2)=1,"Datos a 31 de diciembre.",CONCATENATE("Datos a 31 de diciembre. Para el año ",YEAR('AVISO LEGAL'!J2), " datos a ",TEXT('AVISO LEGAL'!J2-30,"mmmm")," de ",YEAR('AVISO LEGAL'!J2),".")) -> Datos a 31 de diciembre. Para el año 2018 datos a noviembre de 2018.

Sheet Componentes mes peninsula
O1: 28
M4: Sistema eléctrico
M5: Horizonte temporal
M6: Periodo
C8: Ene. | D8: Feb. | E8: Mar. | F8: Abr. | G8: May. | H8: Jun. | I8: Jul. | J8: Ago. | K8: Sep. | L8: Oct. | M8: Nov. | N8: Dic. | O8: =OFFSET(Año!B2,($O$1-1),0) -> 2018
B10: Variación mensual | C10: =OFFSET(Componentes!C3,0,($O$1-1)*13) -> -2.118354045 | D10: =OFFSET(Componentes!D3,0,($O$1-1)*13) -> 6.581378044 | E10: =OFFSET(Componentes!E3,0,($O$1-1)*13) -> 4.568903363 | F10: =OFFSET(Componentes!F3,0,($O$1-1)*13) -> 5.039823203 | G10: =OFFSET(Componentes!G3,0,($O$1-1)*13) -> -0.6662369623 | H10: =OFFSET(Componentes!H3,0,($O$1-1)*13) -> -6.259596385 | I10: =OFFSET(Componentes!I3,0,($O$1-1)*13) -> -1.059097822 | J10: =OFFSET(Componentes!J3,0,($O$1-1)*13) -> 0.9267391278 | K10: =OFFSET(Componentes!K3,0,($O$1-1)*13) -> 2.956469583 | L10: =OFFSET(Componentes!L3,0,($O$1-1)*13) -> 0.6193342001 | M10: =OFFSET(Componentes!M3,0,($O$1-1)*13) -> 0.2165956759 | N10: =OFFSET(Componentes!N3,0,($O$1-1)*13) -> - | O10: =OFFSET(Componentes!O3,0,($O$1-1)*13) -> 0.8605065559
B12: Componentes (1)
B13: Laboralidad | C13: =OFFSET(Componentes!C5,0,($O$1-1)*13) -> 1.505746064 | D13: =OFFSET(Componentes!D5,0,($O$1-1)*13) -> -0.1398080441 | E13: =OFFSET(Componentes!E5,0,($O$1-1)*13) -> -2.825061289 | F13: =OFFSET(Componentes!F5,0,($O$1-1)*13) -> 2.265526873 | G13: =OFFSET(Componentes!G5,0,($O$1-1)*13) -> -0.4292095377 | H13: =OFFSET(Componentes!H5,0,($O$1-1)*13) -> -0.4864798512 | I13: =OFFSET(Componentes!I5,0,($O$1-1)*13) -> -0.7139615713 | J13: =OFFSET(Componentes!J5,0,($O$1-1)*13) -> -1.474233552 | K13: =OFFSET(Componentes!K5,0,($O$1-1)*13) -> -1.83270388 | L13: =OFFSET(Componentes!L5,0,($O$1-1)*13) -> 0.8744638921 | M13: =OFFSET(Componentes!M5,0,($O$1-1)*13) -> -0.4452073377 | N13: =OFFSET(Componentes!N5,0,($O$1-1)*13) -> - | O13: =OFFSET(Componentes!O5,0,($O$1-1)*13) -> -0.336304488
B14: Temperatura (2) | C14: =OFFSET(Componentes!C6,0,($O$1-1)*13) -> -1.608270599 | D14: =OFFSET(Componentes!D6,0,($O$1-1)*13) -> 3.696207926 | E14: =OFFSET(Componentes!E6,0,($O$1-1)*13) -> 2.374373914 | F14: =OFFSET(Componentes!F6,0,($O$1-1)*13) -> 1.106157776 | G14: =OFFSET(Componentes!G6,0,($O$1-1)*13) -> -1.543276101 | H14: =OFFSET(Componentes!H6,0,($O$1-1)*13) -> -2.674736971 | I14: =OFFSET(Componentes!I6,0,($O$1-1)*13) -> -0.3539918828 | J14: =OFFSET(Componentes!J6,0,($O$1-1)*13) -> 0.7009169723 | K14: =OFFSET(Componentes!K6,0,($O$1-1)*13) -> 1.78944886 | L14: =OFFSET(Componentes!L6,0,($O$1-1)*13) -> -0.2212522252 | M14: =OFFSET(Componentes!M6,0,($O$1-1)*13) -> 1.525814132 | N14: =OFFSET(Componentes!N6,0,($O$1-1)*13) -> - | O14: =OFFSET(Componentes!O6,0,($O$1-1)*13) -> 0.3628145955
B15: Demanda corregida | C15: =OFFSET(Componentes!C7,0,($O$1-1)*13) -> -2.015829509 | D15: =OFFSET(Componentes!D7,0,($O$1-1)*13) -> 3.024978162 | E15: =OFFSET(Componentes!E7,0,($O$1-1)*13) -> 5.019590739 | F15: =OFFSET(Componentes!F7,0,($O$1-1)*13) -> 1.668138554 | G15: =OFFSET(Componentes!G7,0,($O$1-1)*13) -> 1.306248676 | H15: =OFFSET(Componentes!H7,0,($O$1-1)*13) -> -3.098379563 | I15: =OFFSET(Componentes!I7,0,($O$1-1)*13) -> 0.008855631973 | J15: =OFFSET(Componentes!J7,0,($O$1-1)*13) -> 1.700055707 | K15: =OFFSET(Componentes!K7,0,($O$1-1)*13) -> 2.999724603 | L15: =OFFSET(Componentes!L7,0,($O$1-1)*13) -> -0.03387746677 | M15: =OFFSET(Componentes!M7,0,($O$1-1)*13) -> -0.864011118 | N15: =OFFSET(Componentes!N7,0,($O$1-1)*13) -> - | O15: =OFFSET(Componentes!O7,0,($O$1-1)*13) -> 0.8339964485
B17: (1) La suma de los componentes es igual al tanto por ciento de variación de la demanda total.
B18: (2) Una media de las temperaturas máximas diarias por debajo o por encima de los umbrales de invierno y verano respectivamente, produce aumento de la demanda.

Sheet Componentes año peninsula
L1: 3
J4: Sistema eléctrico
J5: Horizonte temporal
J6: Periodo
C8: =OFFSET(Componentes!C30,0,($L$1-1)*10) -> 2011 | D8: =OFFSET(Componentes!D30,0,($L$1-1)*10) -> 2012 | E8: =OFFSET(Componentes!E30,0,($L$1-1)*10) -> 2013 | F8: =OFFSET(Componentes!F30,0,($L$1-1)*10) -> 2014 | G8: =OFFSET(Componentes!G30,0,($L$1-1)*10) -> 2015 | H8: =OFFSET(Componentes!H30,0,($L$1-1)*10) -> 2016 | I8: =OFFSET(Componentes!I30,0,($L$1-1)*10) -> 2017 | J8: =OFFSET(Componentes!J30,0,($L$1-1)*10) -> 2018 | K8: =OFFSET(Componentes!K30,0,($L$1-1)*10) -> 2019 | L8: =OFFSET(Componentes!L30,0,($L$1-1)*10) -> 2020
B10: Variación anual | C10: =OFFSET(Componentes!C31,0,($L$1-1)*10) -> -2.120920672 | D10: =OFFSET(Componentes!D31,0,($L$1-1)*10) -> -1.286742187 | E10: =OFFSET(Componentes!E31,0,($L$1-1)*10) -> -2.304084066 | F10: =OFFSET(Componentes!F31,0,($L$1-1)*10) -> -1.11657033 | G10: =OFFSET(Componentes!G31,0,($L$1-1)*10) -> 1.972072016 | H10: =OFFSET(Componentes!H31,0,($L$1-1)*10) -> 0.6895440492 | I10: =OFFSET(Componentes!I31,0,($L$1-1)*10) -> 1.132055813 | J10: =OFFSET(Componentes!J31,0,($L$1-1)*10) -> 0.8605065559 | K10: =OFFSET(Componentes!K31,0,($L$1-1)*10) -> - | L10: =OFFSET(Componentes!L31,0,($L$1-1)*10) -> -
B12: Componentes (1)
B13: Laboralidad | C13: =OFFSET(Componentes!C33,0,($L$1-1)*10) -> 0.1399598903 | D13: =OFFSET(Componentes!D33,0,($L$1-1)*10) -> -0.2752330108 | E13: =OFFSET(Componentes!E33,0,($L$1-1)*10) -> 0.192815811 | F13: =OFFSET(Componentes!F33,0,($L$1-1)*10) -> -0.003073060092 | G13: =OFFSET(Componentes!G33,0,($L$1-1)*10) -> -0.06084387881 | H13: =OFFSET(Componentes!H33,0,($L$1-1)*10) -> 0.5843869624 | I13: =OFFSET(Componentes!I33,0,($L$1-1)*10) -> -0.3421463677 | J13: =OFFSET(Componentes!J33,0,($L$1-1)*10) -> -0.336304488 | K13: =OFFSET(Componentes!K33,0,($L$1-1)*10) -> - | L13: =OFFSET(Componentes!L33,0,($L$1-1)*10) -> -
B14: Temperatura (2) | C14: =OFFSET(Componentes!C34,0,($L$1-1)*10) -> -1.025588359 | D14: =OFFSET(Componentes!D34,0,($L$1-1)*10) -> 0.6935701808 | E14: =OFFSET(Componentes!E34,0,($L$1-1)*10) -> -0.2720628307 | F14: =OFFSET(Componentes!F34,0,($L$1-1)*10) -> -0.9883665227 | G14: =OFFSET(Componentes!G34,0,($L$1-1)*10) -> 0.3593659769 | H14: =OFFSET(Componentes!H34,0,($L$1-1)*10) -> 0.09209359016 | I14: =OFFSET(Componentes!I34,0,($L$1-1)*10) -> -0.1664855352 | J14: =OFFSET(Componentes!J34,0,($L$1-1)*10) -> 0.3628145955 | K14: =OFFSET(Componentes!K34,0,($L$1-1)*10) -> - | L14: =OFFSET(Componentes!L34,0,($L$1-1)*10) -> -
B15: Demanda corregida | C15: =OFFSET(Componentes!C35,0,($L$1-1)*10) -> -1.23321508 | D15: =OFFSET(Componentes!D35,0,($L$1-1)*10) -> -1.701000906 | E15: =OFFSET(Componentes!E35,0,($L$1-1)*10) -> -2.222821705 | F15: =OFFSET(Componentes!F35,0,($L$1-1)*10) -> -0.1257412732 | G15: =OFFSET(Componentes!G35,0,($L$1-1)*10) -> 1.687046361 | H15: =OFFSET(Componentes!H35,0,($L$1-1)*10) -> 0.01306349673 | I15: =OFFSET(Componentes!I35,0,($L$1-1)*10) -> 1.640687716 | J15: =OFFSET(Componentes!J35,0,($L$1-1)*10) -> 0.8339964485 | K15: =OFFSET(Componentes!K35,0,($L$1-1)*10) -> - | L15: =OFFSET(Componentes!L35,0,($L$1-1)*10) -> -
B17: (1) La suma de los componentes es igual al tanto por ciento de variación de la demanda total.
B18: (2) Una media de las temperaturas máximas diarias por debajo o por encima de los umbrales de invierno y verano respectivamente, produce aumento de la demanda.
B19: =IF(MONTH('AVISO LEGAL'!J2)=1,"Datos a 31 de diciembre.",CONCATENATE("Datos a 31 de diciembre. Para el año ",YEAR('AVISO LEGAL'!J2), " datos a ",TEXT('AVISO LEGAL'!J2-30,"mmmm")," de ",YEAR('AVISO LEGAL'!J2),".")) -> Datos a 31 de diciembre. Para el año 2018 datos a noviembre de 2018.

Sheet Componentes mes Baleares
O1: 8
M4: Sistema eléctrico
M5: Horizonte temporal
M6: Periodo
C8: Ene. | D8: Feb. | E8: Mar. | F8: Abr. | G8: May. | H8: Jun. | I8: Jul. | J8: Ago. | K8: Sep. | L8: Oct. | M8: Nov. | N8: Dic. | O8: =OFFSET(Año!B22,($O$1-1),0) -> 2018
B10: Variación mensual | C10: =OFFSET(Componentes!C10,0,($O$1-1)*13) -> -8.553380072 | D10: =OFFSET(Componentes!D10,0,($O$1-1)*13) -> 15.66859751 | E10: =OFFSET(Componentes!E10,0,($O$1-1)*13) -> 12.9189579 | F10: =OFFSET(Componentes!F10,0,($O$1-1)*13) -> 2.796939136 | G10: =OFFSET(Componentes!G10,0,($O$1-1)*13) -> -1.690983428 | H10: =OFFSET(Componentes!H10,0,($O$1-1)*13) -> -7.735806584 | I10: =OFFSET(Componentes!I10,0,($O$1-1)*13) -> 1.145959691 | J10: =OFFSET(Componentes!J10,0,($O$1-1)*13) -> -0.4120871112 | K10: =OFFSET(Componentes!K10,0,($O$1-1)*13) -> 7.629518646 | L10: =OFFSET(Componentes!L10,0,($O$1-1)*13) -> 0.05815678692 | M10: =OFFSET(Componentes!M10,0,($O$1-1)*13) -> -0.2233567381 | N10: =OFFSET(Componentes!N10,0,($O$1-1)*13) -> - | O10: =OFFSET(Componentes!O10,0,($O$1-1)*13) -> 1.401423959
B12: Componentes (1)
B13: Laboralidad | C13: =OFFSET(Componentes!C12,0,($O$1-1)*13) -> 0.4294817027 | D13: =OFFSET(Componentes!D12,0,($O$1-1)*13) -> 0.03817878306 | E13: =OFFSET(Componentes!E12,0,($O$1-1)*13) -> -1.099937499 | F13: =OFFSET(Componentes!F12,0,($O$1-1)*13) -> 0.7593479351 | G13: =OFFSET(Componentes!G12,0,($O$1-1)*13) -> 0.05518034254 | H13: =OFFSET(Componentes!H12,0,($O$1-1)*13) -> -0.1967168863 | I13: =OFFSET(Componentes!I12,0,($O$1-1)*13) -> 0.2154040028 | J13: =OFFSET(Componentes!J12,0,($O$1-1)*13) -> 0.0184509931 | K13: =OFFSET(Componentes!K12,0,($O$1-1)*13) -> -0.5215605171 | L13: =OFFSET(Componentes!L12,0,($O$1-1)*13) -> 0.6956962633 | M13: =OFFSET(Componentes!M12,0,($O$1-1)*13) -> 0.1966052114 | N13: =OFFSET(Componentes!N12,0,($O$1-1)*13) -> - | O13: =OFFSET(Componentes!O12,0,($O$1-1)*13) -> 0.06517618915
B14: Temperatura (2) | C14: =OFFSET(Componentes!C13,0,($O$1-1)*13) -> -6.291383707 | D14: =OFFSET(Componentes!D13,0,($O$1-1)*13) -> 11.48665307 | E14: =OFFSET(Componentes!E13,0,($O$1-1)*13) -> 6.154463221 | F14: =OFFSET(Componentes!F13,0,($O$1-1)*13) -> 2.028052369 | G14: =OFFSET(Componentes!G13,0,($O$1-1)*13) -> -1.986006237 | H14: =OFFSET(Componentes!H13,0,($O$1-1)*13) -> -3.111398884 | I14: =OFFSET(Componentes!I13,0,($O$1-1)*13) -> -0.433090813 | J14: =OFFSET(Componentes!J13,0,($O$1-1)*13) -> -0.8491339799 | K14: =OFFSET(Componentes!K13,0,($O$1-1)*13) -> 3.832215187 | L14: =OFFSET(Componentes!L13,0,($O$1-1)*13) -> 0.7167911298 | M14: =OFFSET(Componentes!M13,0,($O$1-1)*13) -> -0.9804401839 | N14: =OFFSET(Componentes!N13,0,($O$1-1)*13) -> - | O14: =OFFSET(Componentes!O13,0,($O$1-1)*13) -> 0.5418419025
B15: Demanda corregida | C15: =OFFSET(Componentes!C14,0,($O$1-1)*13) -> -2.691478067 | D15: =OFFSET(Componentes!D14,0,($O$1-1)*13) -> 4.143765657 | E15: =OFFSET(Componentes!E14,0,($O$1-1)*13) -> 7.864432182 | F15: =OFFSET(Componentes!F14,0,($O$1-1)*13) -> 0.009538832769 | G15: =OFFSET(Componentes!G14,0,($O$1-1)*13) -> 0.239842467 | H15: =OFFSET(Componentes!H14,0,($O$1-1)*13) -> -4.427690814 | I15: =OFFSET(Componentes!I14,0,($O$1-1)*13) -> 1.363646501 | J15: =OFFSET(Componentes!J14,0,($O$1-1)*13) -> 0.4185958755 | K15: =OFFSET(Componentes!K14,0,($O$1-1)*13) -> 4.318863976 | L15: =OFFSET(Componentes!L14,0,($O$1-1)*13) -> -1.354330606 | M15: =OFFSET(Componentes!M14,0,($O$1-1)*13) -> 0.5604782344 | N15: =OFFSET(Componentes!N14,0,($O$1-1)*13) -> - | O15: =OFFSET(Componentes!O14,0,($O$1-1)*13) -> 0.7944058671
B17: (1) La suma de los componentes es igual al tanto por ciento de variación de la demanda total.
B18: (2) Una media de las temperaturas máximas diarias por debajo o por encima de los umbrales de invierno y verano respectivamente, produce aumento de la demanda.

Sheet Componentes año Baleares
L1: 1
J4: Sistema eléctrico
J5: Horizonte temporal
J6: Periodo
C8: =OFFSET(Componentes!C37,0,($L$1-1)*10) -> 2011 | D8: =OFFSET(Componentes!D37,0,($L$1-1)*10) -> 2012 | E8: =OFFSET(Componentes!E37,0,($L$1-1)*10) -> 2013 | F8: =OFFSET(Componentes!F37,0,($L$1-1)*10) -> 2014 | G8: =OFFSET(Componentes!G37,0,($L$1-1)*10) -> 2015 | H8: =OFFSET(Componentes!H37,0,($L$1-1)*10) -> 2016 | I8: =OFFSET(Componentes!I37,0,($L$1-1)*10) -> 2017 | J8: =OFFSET(Componentes!J37,0,($L$1-1)*10) -> 2018 | K8: =OFFSET(Componentes!K37,0,($L$1-1)*10) -> 2019 | L8: =OFFSET(Componentes!L37,0,($L$1-1)*10) -> 2020
B10: Variación anual | C10: =OFFSET(Componentes!C38,0,($L$1-1)*10) -> -1.717467165 | D10: =OFFSET(Componentes!D38,0,($L$1-1)*10) -> 1.418351486 | E10: =OFFSET(Componentes!E38,0,($L$1-1)*10) -> -2.654473816 | F10: =OFFSET(Componentes!F38,0,($L$1-1)*10) -> -1.577503212 | G10: =OFFSET(Componentes!G38,0,($L$1-1)*10) -> 3.773958005 | H10: =OFFSET(Componentes!H38,0,($L$1-1)*10) -> 0.6085303347 | I10: =OFFSET(Componentes!I38,0,($L$1-1)*10) -> 3.318203632 | J10: =OFFSET(Componentes!J38,0,($L$1-1)*10) -> 1.401423959 | K10: =OFFSET(Componentes!K38,0,($L$1-1)*10) -> - | L10: =OFFSET(Componentes!L38,0,($L$1-1)*10) -> -
B12: Componentes (1)
B13: Laboralidad | C13: =OFFSET(Componentes!C40,0,($L$1-1)*10) -> -0.04427113824 | D13: =OFFSET(Componentes!D40,0,($L$1-1)*10) -> -0.02666060447 | E13: =OFFSET(Componentes!E40,0,($L$1-1)*10) -> -0.1367385641 | F13: =OFFSET(Componentes!F40,0,($L$1-1)*10) -> 0.2357214352 | G13: =OFFSET(Componentes!G40,0,($L$1-1)*10) -> 0.1662062103 | H13: =OFFSET(Componentes!H40,0,($L$1-1)*10) -> 0.2147095695 | I13: =OFFSET(Componentes!I40,0,($L$1-1)*10) -> -0.3765305747 | J13: =OFFSET(Componentes!J40,0,($L$1-1)*10) -> 0.06517618915 | K13: =OFFSET(Componentes!K40,0,($L$1-1)*10) -> - | L13: =OFFSET(Componentes!L40,0,($L$1-1)*10) -> -
B14: Temperatura (2) | C14: =OFFSET(Componentes!C41,0,($L$1-1)*10) -> -1.470159698 | D14: =OFFSET(Componentes!D41,0,($L$1-1)*10) -> 1.53528161 | E14: =OFFSET(Componentes!E41,0,($L$1-1)*10) -> -1.01447582 | F14: =OFFSET(Componentes!F41,0,($L$1-1)*10) -> 0.1895269061 | G14: =OFFSET(Componentes!G41,0,($L$1-1)*10) -> 0.9467205084 | H14: =OFFSET(Componentes!H41,0,($L$1-1)*10) -> -1.673589463 | I14: =OFFSET(Componentes!I41,0,($L$1-1)*10) -> 1.268558692 | J14: =OFFSET(Componentes!J41,0,($L$1-1)*10) -> 0.5418419025 | K14: =OFFSET(Componentes!K41,0,($L$1-1)*10) -> - | L14: =OFFSET(Componentes!L41,0,($L$1-1)*10) -> -
B15: Demanda corregida | C15: =OFFSET(Componentes!C42,0,($L$1-1)*10) -> -0.1928554071 | D15: =OFFSET(Componentes!D42,0,($L$1-1)*10) -> -0.0964948893 | E15: =OFFSET(Componentes!E42,0,($L$1-1)*10) -> -1.505471287 | F15: =OFFSET(Componentes!F42,0,($L$1-1)*10) -> -2.002751273 | G15: =OFFSET(Componentes!G42,0,($L$1-1)*10) -> 2.66064916 | H15: =OFFSET(Componentes!H42,0,($L$1-1)*10) -> 2.067410228 | I15: =OFFSET(Componentes!I42,0,($L$1-1)*10) -> 2.426175514 | J15: =OFFSET(Componentes!J42,0,($L$1-1)*10) -> 0.7944058671 | K15: =OFFSET(Componentes!K42,0,($L$1-1)*10) -> - | L15: =OFFSET(Componentes!L42,0,($L$1-1)*10) -> -
B17: (1) La suma de los componentes es igual al tanto por ciento de variación de la demanda total.
B18: (2) Una media de las temperaturas máximas diarias por debajo o por encima de los umbrales de invierno y verano respectivamente, produce aumento de la demanda.
B19: =IF(MONTH('AVISO LEGAL'!J2)=1,"Datos a 31 de diciembre.",CONCATENATE("Datos a 31 de diciembre. Para el año ",YEAR('AVISO LEGAL'!J2), " datos a ",TEXT('AVISO LEGAL'!J2-30,"mmmm")," de ",YEAR('AVISO LEGAL'!J2),".")) -> Datos a 31 de diciembre. Para el año 2018 datos a noviembre de 2018.

Sheet Componentes mes Canarias
O1: 8
M4: Sistema eléctrico
M5: Horizonte temporal
M6: Periodo
C8: Ene. | D8: Feb. | E8: Mar. | F8: Abr. | G8: May. | H8: Jun. | I8: Jul. | J8: Ago. | K8: Sep. | L8: Oct. | M8: Nov. | N8: Dic. | O8: =OFFSET(Año!B22,($O$1-1),0) -> 2018
B10: Variación mensual | C10: =OFFSET(Componentes!C17,0,($O$1-1)*13) -> 1.324192016 | D10: =OFFSET(Componentes!D17,0,($O$1-1)*13) -> 2.585846214 | E10: =OFFSET(Componentes!E17,0,($O$1-1)*13) -> -0.9267293185 | F10: =OFFSET(Componentes!F17,0,($O$1-1)*13) -> -0.3442680241 | G10: =OFFSET(Componentes!G17,0,($O$1-1)*13) -> -1.794988364 | H10: =OFFSET(Componentes!H17,0,($O$1-1)*13) -> -3.115061886 | I10: =OFFSET(Componentes!I17,0,($O$1-1)*13) -> -1.402003859 | J10: =OFFSET(Componentes!J17,0,($O$1-1)*13) -> -3.038763921 | K10: =OFFSET(Componentes!K17,0,($O$1-1)*13) -> 0.7696292567 | L10: =OFFSET(Componentes!L17,0,($O$1-1)*13) -> -1.424797957 | M10: =OFFSET(Componentes!M17,0,($O$1-1)*13) -> -3.127769928 | N10: =OFFSET(Componentes!N17,0,($O$1-1)*13) -> - | O10: =OFFSET(Componentes!O17,0,($O$1-1)*13) -> -1.002352622
B12: Componentes (1)
B13: Laboralidad | C13: =OFFSET(Componentes!C19,0,($O$1-1)*13) -> 0.02040469546 | D13: =OFFSET(Componentes!D19,0,($O$1-1)*13) -> -0.05876058215 | E13: =OFFSET(Componentes!E19,0,($O$1-1)*13) -> -1.177419493 | F13: =OFFSET(Componentes!F19,0,($O$1-1)*13) -> 1.165189002 | G13: =OFFSET(Componentes!G19,0,($O$1-1)*13) -> 0.01037253996 | H13: =OFFSET(Componentes!H19,0,($O$1-1)*13) -> -0.2491496011 | I13: =OFFSET(Componentes!I19,0,($O$1-1)*13) -> 0.2447161564 | J13: =OFFSET(Componentes!J19,0,($O$1-1)*13) -> 0.1208104793 | K13: =OFFSET(Componentes!K19,0,($O$1-1)*13) -> -0.3403512775 | L13: =OFFSET(Componentes!L19,0,($O$1-1)*13) -> 0.6390586868 | M13: =OFFSET(Componentes!M19,0,($O$1-1)*13) -> -0.09750814028 | N13: =OFFSET(Componentes!N19,0,($O$1-1)*13) -> - | O13: =OFFSET(Componentes!O19,0,($O$1-1)*13) -> 0.02784460615
B14: Temperatura (2) | C14: =OFFSET(Componentes!C20,0,($O$1-1)*13) -> 0.2839928678 | D14: =OFFSET(Componentes!D20,0,($O$1-1)*13) -> 0.3063275052 | E14: =OFFSET(Componentes!E20,0,($O$1-1)*13) -> -0.1501943603 | F14: =OFFSET(Componentes!F20,0,($O$1-1)*13) -> -0.02954015353 | G14: =OFFSET(Componentes!G20,0,($O$1-1)*13) -> -0.005250684859 | H14: =OFFSET(Componentes!H20,0,($O$1-1)*13) -> -0.108169693 | I14: =OFFSET(Componentes!I20,0,($O$1-1)*13) -> -0.05647908992 | J14: =OFFSET(Componentes!J20,0,($O$1-1)*13) -> -0.1401181492 | K14: =OFFSET(Componentes!K20,0,($O$1-1)*13) -> 0.01995664823 | L14: =OFFSET(Componentes!L20,0,($O$1-1)*13) -> -0.1924835681 | M14: =OFFSET(Componentes!M20,0,($O$1-1)*13) -> 0.01464988823 | N14: =OFFSET(Componentes!N20,0,($O$1-1)*13) -> - | O14: =OFFSET(Componentes!O20,0,($O$1-1)*13) -> -0.02186849263
B15: Demanda corregida | C15: =OFFSET(Componentes!C21,0,($O$1-1)*13) -> 1.019794453 | D15: =OFFSET(Componentes!D21,0,($O$1-1)*13) -> 2.338279291 | E15: =OFFSET(Componentes!E21,0,($O$1-1)*13) -> 0.4008845351 | F15: =OFFSET(Componentes!F21,0,($O$1-1)*13) -> -1.479916873 | G15: =OFFSET(Componentes!G21,0,($O$1-1)*13) -> -1.800110219 | H15: =OFFSET(Componentes!H21,0,($O$1-1)*13) -> -2.757742592 | I15: =OFFSET(Componentes!I21,0,($O$1-1)*13) -> -1.590240925 | J15: =OFFSET(Componentes!J21,0,($O$1-1)*13) -> -3.019456252 | K15: =OFFSET(Componentes!K21,0,($O$1-1)*13) -> 1.090023886 | L15: =OFFSET(Componentes!L21,0,($O$1-1)*13) -> -1.871373075 | M15: =OFFSET(Componentes!M21,0,($O$1-1)*13) -> -3.044911676 | N15: =OFFSET(Componentes!N21,0,($O$1-1)*13) -> - | O15: =OFFSET(Componentes!O21,0,($O$1-1)*13) -> -1.008328735
B17: (1) La suma de los componentes es igual al tanto por ciento de variación de la demanda total.
B18: (2) Una media de las temperaturas máximas diarias por debajo o por encima de los umbrales de invierno y verano respectivamente, produce aumento de la demanda.

Sheet Componentes año Canarias
L1: 1
J4: Sistema eléctrico
J5: Horizonte temporal
J6: Periodo
C8: =OFFSET(Componentes!C44,0,($L$1-1)*10) -> 2011 | D8: =OFFSET(Componentes!D44,0,($L$1-1)*10) -> 2012 | E8: =OFFSET(Componentes!E44,0,($L$1-1)*10) -> 2013 | F8: =OFFSET(Componentes!F44,0,($L$1-1)*10) -> 2014 | G8: =OFFSET(Componentes!G44,0,($L$1-1)*10) -> 2015 | H8: =OFFSET(Componentes!H44,0,($L$1-1)*10) -> 2016 | I8: =OFFSET(Componentes!I44,0,($L$1-1)*10) -> 2017 | J8: =OFFSET(Componentes!J44,0,($L$1-1)*10) -> 2018 | K8: =OFFSET(Componentes!K44,0,($L$1-1)*10) -> 2019 | L8: =OFFSET(Componentes!L44,0,($L$1-1)*10) -> 2020
B10: Variación anual | C10: =OFFSET(Componentes!C45,0,($L$1-1)*10) -> -0.3572142624 | D10: =OFFSET(Componentes!D45,0,($L$1-1)*10) -> 0.2736214454 | E10: =OFFSET(Componentes!E45,0,($L$1-1)*10) -> -4.28610292 | F10: =OFFSET(Componentes!F45,0,($L$1-1)*10) -> -0.1316801588 | G10: =OFFSET(Componentes!G45,0,($L$1-1)*10) -> 1.625598751 | H10: =OFFSET(Componentes!H45,0,($L$1-1)*10) -> 1.284448393 | I10: =OFFSET(Componentes!I45,0,($L$1-1)*10) -> 2.138132711 | J10: =OFFSET(Componentes!J45,0,($L$1-1)*10) -> -1.002352622 | K10: =OFFSET(Componentes!K45,0,($L$1-1)*10) -> - | L10: =OFFSET(Componentes!L45,0,($L$1-1)*10) -> -
B12: Componentes (1)
B13: Laboralidad | C13: =OFFSET(Componentes!C47,0,($L$1-1)*10) -> -0.006376918482 | D13: =OFFSET(Componentes!D47,0,($L$1-1)*10) -> -0.04000782919 | E13: =OFFSET(Componentes!E47,0,($L$1-1)*10) -> -0.2629998814 | F13: =OFFSET(Componentes!F47,0,($L$1-1)*10) -> -0.01178081089 | G13: =OFFSET(Componentes!G47,0,($L$1-1)*10) -> 0.1805926072 | H13: =OFFSET(Componentes!H47,0,($L$1-1)*10) -> 0.2471598048 | I13: =OFFSET(Componentes!I47,0,($L$1-1)*10) -> 0.06758735921 | J13: =OFFSET(Componentes!J47,0,($L$1-1)*10) -> 0.02784460615 | K13: =OFFSET(Componentes!K47,0,($L$1-1)*10) -> - | L13: =OFFSET(Componentes!L47,0,($L$1-1)*10) -> -
B14: Temperatura (2) | C14: =OFFSET(Componentes!C48,0,($L$1-1)*10) -> -0.2861971907 | D14: =OFFSET(Componentes!D48,0,($L$1-1)*10) -> 0.2213108863 | E14: =OFFSET(Componentes!E48,0,($L$1-1)*10) -> -0.4949253866 | F14: =OFFSET(Componentes!F48,0,($L$1-1)*10) -> -1.120271588 | G14: =OFFSET(Componentes!G48,0,($L$1-1)*10) -> 0.007343420587 | H14: =OFFSET(Componentes!H48,0,($L$1-1)*10) -> -0.03948379941 | I14: =OFFSET(Componentes!I48,0,($L$1-1)*10) -> 0.03379773329 | J14: =OFFSET(Componentes!J48,0,($L$1-1)*10) -> -0.02186849263 | K14: =OFFSET(Componentes!K48,0,($L$1-1)*10) -> - | L14: =OFFSET(Componentes!L48,0,($L$1-1)*10) -> -
B15: Demanda corregida | C15: =OFFSET(Componentes!C49,0,($L$1-1)*10) -> -0.06539555548 | D15: =OFFSET(Componentes!D49,0,($L$1-1)*10) -> 0.09320139068 | E15: =OFFSET(Componentes!E49,0,($L$1-1)*10) -> -3.516282253 | F15: =OFFSET(Componentes!F49,0,($L$1-1)*10) -> 1.000327235 | G15: =OFFSET(Componentes!G49,0,($L$1-1)*10) -> 1.437688417 | H15: =OFFSET(Componentes!H49,0,($L$1-1)*10) -> 1.076772388 | I15: =OFFSET(Componentes!I49,0,($L$1-1)*10) -> 2.036747618 | J15: =OFFSET(Componentes!J49,0,($L$1-1)*10) -> -1.008328735 | K15: =OFFSET(Componentes!K49,0,($L$1-1)*10) -> - | L15: =OFFSET(Componentes!L49,0,($L$1-1)*10) -> -
B17: (1) La suma de los componentes es igual al tanto por ciento de variación de la demanda total.
B18: (2) Una media de las temperaturas máximas diarias por debajo o por encima de los umbrales de invierno y verano respectivamente, produce aumento de la demanda.
B19: =IF(MONTH('AVISO LEGAL'!J2)=1,"Datos a 31 de diciembre.",CONCATENATE("Datos a 31 de diciembre. Para el año ",YEAR('AVISO LEGAL'!J2), " datos a ",TEXT('AVISO LEGAL'!J2-30,"mmmm")," de ",YEAR('AVISO LEGAL'!J2),".")) -> Datos a 31 de diciembre. Para el año 2018 datos a noviembre de 2018.

Sheet Componentes (hidden)
B2: Componentes mensuales del crecimiento de la demanda peninsular (%) | C2: 1991-01-01 | D2: 1991-02-01 | E2: 1991-03-01 | F2: 1991-04-01 | G2: 1991-05-01 | H2: 1991-06-01 | I2: 1991-07-01 | J2: 1991-08-01 | K2: 1991-09-01 | L2: 1991-10-01 | M2: 1991-11-01 | N2: 1991-12-01 | O2: 1991 | P2: 1992-01-01 | Q2: 1992-02-01 | R2: 1992-03-01 | S2: 1992-04-01 | T2: 1992-05-01 | U2: 1992-06-01 | V2: 1992-07-01 | W2: 1992-08-01 | X2: 1992-09-01 | Y2: 1992-10-01 | Z2: 1992-11-01 | AA2: 1992-12-01 | AB2: 1992 | AC2: 1993-01-01 | AD2: 1993-02-01 | AE2: 1993-03-01 | AF2: 1993-04-01 | AG2: 1993-05-01 | AH2: 1993-06-01 | AI2: 1993-07-01 | AJ2: 1993-08-01 | AK2: 1993-09-01 | AL2: 1993-10-01 | AM2: 1993-11-01 | AN2: 1993-12-01 | AO2: 1993 | AP2: 1994-01-01 | AQ2: 1994-02-01 | AR2: 1994-03-01 | AS2: 1994-04-01 | AT2: 1994-05-01 | AU2: 1994-06-01 | AV2: 1994-07-01 | AW2: 1994-08-01 | AX2: 1994-09-01 | AY2: 1994-10-01 | AZ2: 1994-11-01 | BA2: 1994-12-01 | BB2: 1994 | BC2: 1995-01-01 | BD2: 1995-02-01 | BE2: 1995-03-01 | BF2: 1995-04-01 | BG2: 1995-05-01 | BH2: 1995-06-01 | BI2: 1995-07-01 | BJ2: 1995-08-01 | BK2: 1995-09-01 | BL2: 1995-10-01 | BM2: 1995-11-01 | BN2: 1995-12-01 | BO2: 1995 | BP2: 1996-01-01 | BQ2: 1996-02-01 | BR2: 1996-03-01 | BS2: 1996-04-01 | BT2: 1996-05-01 | BU2: 1996-06-01 | BV2: 1996-07-01 | BW2: 1996-08-01 | BX2: 1996-09-01 | BY2: 1996-10-01 | BZ2: 1996-11-01 | CA2: 1996-12-01 | CB2: 1996 | CC2: 1997-01-01 | CD2: 1997-02-01 | CE2: 1997-03-01 | CF2: 1997-04-01 | CG2: 1997-05-01 | CH2: 1997-06-01 | CI2: 1997-07-01 | CJ2: 1997-08-01 | CK2: 1997-09-01 | CL2: 1997-10-01 | CM2: 1997-11-01 | CN2: 1997-12-01 | CO2: 1997 | CP2: 1998-01-01 | CQ2: 1998-02-01 | CR2: 1998-03-01 | CS2: 1998-04-01 | CT2: 1998-05-01 | CU2: 1998-06-01 | CV2: 1998-07-01 | CW2: 1998-08-01 | CX2: 1998-09-01 | CY2: 1998-10-01 | CZ2: 1998-11-01 | DA2: 1998-12-01 | DB2: 1998 | DC2: 1999-01-01 | DD2: 1999-02-01 | DE2: 1999-03-01 | DF2: 1999-04-01 | DG2: 1999-05-01 | DH2: 1999-06-01 | DI2: 1999-07-01 | DJ2: 1999-08-01 | DK2: 1999-09-01 | DL2: 1999-10-01 | DM2: 1999-11-01 | DN2: 1999-12-01 | DO2: 1999 | DP2: 2000-01-01 | DQ2: 2000-02-01 | DR2: 2000-03-01 | DS2: 2000-04-01 | DT2: 2000-05-01 | DU2: 2000-06-01 | DV2: 2000-07-01 | DW2: 2000-08-01 | DX2: 2000-09-01 | DY2: 2000-10-01 | DZ2: 2000-11-01 | EA2: 2000-12-01 | EB2: 2000 | EC2: 2001-01-01 | ED2: 2001-02-01 | EE2: 2001-03-01 | EF2: 2001-04-01 | EG2: 2001-05-01 | EH2: 2001-06-01 | EI2: 2001-07-01 | EJ2: 2001-08-01 | EK2: 2001-09-01 | EL2: 2001-10-01 | EM2: 2001-11-01 | EN2: 2001-12-01 | EO2: 2001 | EP2: 2002-01-01 | EQ2: 2002-02-01 | ER2: 2002-03-01 | ES2: 2002-04-01 | ET2: 2002-05-01 | EU2: 2002-06-01 | EV2: 2002-07-01 | EW2: 2002-08-01 | EX2: 2002-09-01 | EY2: 2002-10-01 | EZ2: 2002-11-01 | FA2: 2002-12-01 | FB2: 2002 | FC2: 2003-01-01 | FD2: 2003-02-01 | FE2: 2003-03-01 | FF2: 2003-04-01 | FG2: 2003-05-01 | FH2: 2003-06-01 | FI2: 2003-07-01 | FJ2: 2003-08-01 | FK2: 2003-09-01 | FL2: 2003-10-01 | FM2: 2003-11-01 | FN2: 2003-12-01 | FO2: 2003 | FP2: 2004-01-01 | FQ2: 2004-02-01 | FR2: 2004-03-01 | FS2: 2004-04-01 | FT2: 2004-05-01 | FU2: 2004-06-01 | FV2: 2004-07-01 | FW2: 2004-08-01 | FX2: 2004-09-01 | FY2: 2004-10-01 | FZ2: 2004-11-01 | GA2: 2004-12-01 | GB2: 2004 | GC2: 2005-01-01 | GD2: 2005-02-01 | GE2: 2005-03-01 | GF2: 2005-04-01 | GG2: 2005-05-01 | GH2: 2005-06-01 | GI2: 2005-07-01 | GJ2: 2005-08-01 | GK2: 2005-09-01 | GL2: 2005-10-01 | GM2: 2005-11-01 | GN2: 2005-12-01 | GO2: 2005 | GP2: 2006-01-01 | GQ2: 2006-02-01 | GR2: 2006-03-01 | GS2: 2006-04-01 | GT2: 2006-05-01 | GU2: 2006-06-01 | GV2: 2006-07-01 | GW2: 2006-08-01 | GX2: 2006-09-01 | GY2: 2006-10-01 | GZ2: 2006-11-01 | HA2: 2006-12-01 | HB2: 2006 | HC2: 2007-01-01 | HD2: 2007-02-01 | HE2: 2007-03-01 | HF2: 2007-04-01 | HG2: 2007-05-01 | HH2: 2007-06-01 | HI2: 2007-07-01 | HJ2: 2007-08-01 | HK2: 2007-09-01 | HL2: 2007-10-01 | HM2: 2007-11-01 | HN2: 2007-12-01 | HO2: 2007 | HP2: 2008-01-01 | HQ2: 2008-02-01 | HR2: 2008-03-01 | HS2: 2008-04-01 | HT2: 2008-05-01 | HU2: 2008-06-01 | HV2: 2008-07-01 | HW2: 2008-08-01 | HX2: 2008-09-01 | HY2: 2008-10-01 | HZ2: 2008-11-01 | IA2: 2008-12-01 | IB2: 2008 | IC2: 2009-01-01 | ID2: 2009-02-01 | IE2: 2009-03-01 | IF2: 2009-04-01 | IG2: 2009-05-01 | IH2: 2009-06-01 | II2: 2009-07-01 | IJ2: 2009-08-01 | IK2: 2009-09-01 | IL2: 2009-10-01 | IM2: 2009-11-01 | IN2: 2009-12-01 | IO2: 2009 | IP2: 2010-01-01 | IQ2: 2010-02-01 | IR2: 2010-03-01 | IS2: 2010-04-01 | IT2: 2010-05-01 | IU2: 2010-06-01 | IV2: 2010-07-01 | IW2: 2010-08-01 | IX2: 2010-09-01 | IY2: 2010-10-01 | IZ2: 2010-11-01 | JA2: 2010-12-01 | JB2: 2010 | JC2: 2011-01-01 | JD2: 2011-02-01 | JE2: 2011-03-01 | JF2: 2011-04-01 | JG2: 2011-05-01 | JH2: 2011-06-01 | JI2: 2011-07-01 | JJ2: 2011-08-01 | JK2: 2011-09-01 | JL2: 2011-10-01 | JM2: 2011-11-01 | JN2: 2011-12-01 | JO2: 2011 | JP2: 2012-01-01 | JQ2: 2012-02-01 | JR2: 2012-03-01 | JS2: 2012-04-01 | JT2: 2012-05-01 | JU2: 2012-06-01 | JV2: 2012-07-01 | JW2: 2012-08-01 | JX2: 2012-09-01 | JY2: 2012-10-01 | JZ2: 2012-11-01 | KA2: 2012-12-01 | KB2: 2012 | KC2: 2013-01-01 | KD2: 2013-02-01 | KE2: 2013-03-01 | KF2: 2013-04-01 | KG2: 2013-05-01 | KH2: 2013-06-01 | KI2: 2013-07-01 | KJ2: 2013-08-01 | KK2: 2013-09-01 | KL2: 2013-10-01 | KM2: 2013-11-01 | KN2: 2013-12-01 | KO2: 2013 | KP2: 2014-01-01 | KQ2: 2014-02-01 | KR2: 2014-03-01 | KS2: 2014-04-01 | KT2: 2014-05-01 | KU2: 2014-06-01 | KV2: 2014-07-01 | KW2: 2014-08-01 | KX2: 2014-09-01 | KY2: 2014-10-01 | KZ2: 2014-11-01 | LA2: 2014-12-01 | LB2: 2014 | LC2: 2015-01-01 | LD2: 2015-02-01 | LE2: 2015-03-01 | LF2: 2015-04-01 | LG2: 2015-05-01 | LH2: 2015-06-01 | LI2: 2015-07-01 | LJ2: 2015-08-01 | LK2: 2015-09-01 | LL2: 2015-10-01 | LM2: 2015-11-01 | LN2: 2015-12-01 | LO2: 2015 | LP2: 2016-01-01 | LQ2: 2016-02-01 | LR2: 2016-03-01 | LS2: 2016-04-01 | LT2: 2016-05-01 | LU2: 2016-06-01 | LV2: 2016-07-01 | LW2: 2016-08-01 | LX2: 2016-09-01 | LY2: 2016-10-01 | LZ2: 2016-11-01 | MA2: 2016-12-01 | MB2: 2016 | MC2: 2017-01-01 | MD2: 2017-02-01 | ME2: 2017-03-01 | MF2: 2017-04-01 | MG2: 2017-05-01 | MH2: 2017-06-01 | MI2: 2017-07-01 | MJ2: 2017-08-01 | MK2: 2017-09-01 | ML2: 2017-10-01 | MM2: 2017-11-01 | MN2: 2017-12-01 | MO2: 2017 | MP2: 2018-01-01 | MQ2: 2018-02-01 | MR2: 2018-03-01 | MS2: 2018-04-01 | MT2: 2018-05-01 | MU2: 2018-06-01 | MV2: 2018-07-01 | MW2: 2018-08-01 | MX2: 2018-09-01 | MY2: 2018-10-01 | MZ2: 2018-11-01 | NA2: 2018-12-01 | NB2: 2018 | NC2: 2019-01-01 | ND2: 2019-02-01 | NE2: 2019-03-01 | NF2: 2019-04-01 | NG2: 2019-05-01 | NH2: 2019-06-01 | NI2: 2019-07-01 | NJ2: 2019-08-01 | NK2: 2019-09-01 | NL2: 2019-10-01 | NM2: 2019-11-01 | NN2: 2019-12-01 | NO2: 2019 | NP2: 2020-01-01 | NQ2: 2020-02-01 | NR2: 2020-03-01 | NS2: 2020-04-01 | NT2: 2020-05-01 | NU2: 2020-06-01 | NV2: 2020-07-01 | NW2: 2020-08-01 | NX2: 2020-09-01 | NY2: 2020-10-01 | NZ2: 2020-11-01 | OA2: 2020-12-01 | OB2: 2020
B3: Variación mensual | C3: 5.196 | D3: 14.122 | E3: -0.337 | F3: 4.937 | G3: 4.965 | H3: 0.064 | I3: 2.69 | J3: 3.315 | K3: 4.328 | L3: 6.932 | M3: 3.919 | N3: -2.207 | O3: 3.876 | P3: 4.367 | Q3: 3.494 | R3: 7.024 | S3: 1.191 | T3: -0.092 | U3: -1.414 | V3: 1.45 | W3: 2.062 | X3: 0.445 | Y3: -1.141 | Z3: -4.431 | AA3: -2.208 | AB3: 0.906 | AC3: -5.081 | AD3: -4.822 | AE3: 1.582 | AF3: -2.641 | AG3: -1.572 | AH3: 3.645 | AI3: -1.009 | AJ3: 0.822 | AK3: -1.212 | AL3: 1.581 | AM3: 6.724 | AN3: 4.663 | AO3: 0.117 | AP3: 0.338 | AQ3: 1.974 | AR3: -2.945 | AS3: 6.528 | AT3: 5.874 | AU3: 7.216 | AV3: 7.689 | AW3: 8.152 | AX3: 6.645 | AY3: 0.941 | AZ3: -0.52 | BA3: 2.95 | BB3: 3.565 | BC3: 6.41 | BD3: -0.578 | BE3: 9.932 | BF3: 1.958 | BG3: 6.071 | BH3: 4.064 | BI3: 2.294 | BJ3: 3.845 | BK3: 2.635 | BL3: 4.257 | BM3: 3.089 | BN3: 1.205 | BO3: 3.756 | BP3: -0.971 | BQ3: 11.891 | BR3: 1.82 | BS3: 1.422 | BT3: 0.696 | BU3: 2.718 | BV3: 3.253 | BW3: 1.187 | BX3: 0.577 | BY3: 4.201 | BZ3: 5.156 | CA3: 3.973 | CB3: 2.949 | CC3: 6.807 | CD3: -7.549 | CE3: -4.381 | CF3: 7.903 | CG3: 4.672 | CH3: 2.092 | CI3: 2.415 | CJ3: 6.061 | CK3: 10.842 | CL3: 6.766 | CM3: 5.031 | CN3: 7.853 | CO3: 3.94 | CP3: 2.579 | CQ3: 9.567 | CR3: 11.101 | CS3: 5.984 | CT3: 4.898 | CU3: 8.034 | CV3: 10.382 | CW3: 6.483 | CX3: 3.834 | CY3: 3.996 | CZ3: 5.543 | DA3: 7.298 | DB3: 6.584 | DC3: 6.567 | DD3: 9.242 | DE3: 7.085 | DF3: 2.324 | DG3: 6.729 | DH3: 6.787 | DI3: 6.394 | DJ3: 6.02 | DK3: 5.822 | DL3: 4.508 | DM3: 10.576 | DN3: 5.924 | DO3: 6.507 | DP3: 10.367 | DQ3: 4.811 | DR3: 6.369 | DS3: 8.331 | DT3: 6.334 | DU3: 6.856 | DV3: 1.919 | DW3: 6.761 | DX3: 6.735 | DY3: 6.773 | DZ3: 4.09 | EA3: 1.082 | EB3: 5.794 | EC3: 2.489 | ED3: 5.125 | EE3: 5.24 | EF3: 2.174 | EG3: 7.238 | EH3: 6.174 | EI3: 6.451 | EJ3: 7.12 | EK3: 3.075 | EL3: 4.814 | EM3: 5.235 | EN3: 10.151 | EO3: 5.449 | EP3: 5.752 | EQ3: 3.062 | ER3: 2.304 | ES3: 9.585 | ET3: 3.009 | EU3: 1.692 | EV3: 4.661 | EW3: -1.004 | EX3: 2.878 | EY3: 5.383 | EZ3: 0.254 | FA3: -1.923 | FB3: 2.892 | FC3: 4.437 | FD3: 10.435 | FE3: 4.994 | FF3: -0.068 | FG3: 3.279 | FH3: 8.845 | FI3: 8.612 | FJ3: 12.847 | FK3: 7.189 | FL3: 6.221 | FM3: 5.777 | FN3: 8.694 | FO3: 6.749 | FP3: 0.653 | FQ3: 3.779 | FR3: 11.178 | FS3: 7.373 | FT3: 4.292 | FU3: 2.496 | FV3: 2.971 | FW3: 1.466 | FX3: 6.117 | FY3: 2.175 | FZ3: 7.037 | GA3: 5.075 | GB3: 4.489 | GC3: 10.345 | GD3: 7.713 | GE3: 2.146 | GF3: 4.319 | GG3: 3.697 | GH3: 5.767 | GI3: 4.301 | GJ3: 2.97 | GK3: 1.027 | GL3: 0.509 | GM3: 2.226 | GN3: 6.478 | GO3: 4.325 | GP3: 4.515 | GQ3: 1.287 | GR3: 4.465 | GS3: -1.933 | GT3: 6.085 | GU3: 1.705 | GV3: 6.96 | GW3: 5.396 | GX3: 6.892 | GY3: 6.324 | GZ3: -0.373 | HA3: 1.725 | HB3: 3.573 | HC3: 3.033 | HD3: -0.324 | HE3: 2.721 | HF3: 8.452 | HG3: 2.412 | HH3: 1.101 | HI3: -0.808 | HJ3: 2.472 | HK3: 0.286 | HL3: 3.747 | HM3: 9.363 | HN3: 3.663 | HO3: 2.924 | HP3: 1.134 | HQ3: 6.436 | HR3: -1.124 | HS3: 6.098 | HT3: 0.419 | HU3: 0.003 | HV3: 1.698 | HW3: 2.923 | HX3: 0.874 | HY3: -0.424 | HZ3: -2.065 | IA3: -2.404 | IB3: 1.055 | IC3: -2.711 | ID3: -7.367 | IE3: -6.214 | IF3: -10.553 | IG3: -6.248 | IH3: -2.564 | II3: -3.508 | IJ3: -2.673 | IK3: -3.231 | IL3: -3.785 | IM3: -6.362 | IN3: -1.893 | IO3: -4.731 | IP3: -0.08295091646 | IQ3: 4.909730815 | IR3: 9.031905161 | IS3: 3.676019807 | IT3: 3.975215021 | IU3: -0.4948839342 | IV3: 3.213000838 | IW3: 1.453529252 | IX3: 1.477270294 | IY3: 0.8548488984 | IZ3: 6.624865855 | JA3: 3.14563025 | JB3: 3.113747512 | JC3: -0.5961676939 | JD3: -2.499132984 | JE3: -0.3509410161 | JF3: -3.751389421 | JG3: -0.7512448349 | JH3: 1.439919236 | JI3: -5.322811252 | JJ3: 0.3186465152 | JK3: 1.274619346 | JL3: -1.021119996 | JM3: -6.485287368 | JN3: -6.880476612 | JO3: -2.120920672 | JP3: -2.329777667 | JQ3: 7.318553646 | JR3: -6.121595313 | JS3: 1.382709602 | JT3: -0.5945246838 | JU3: -0.07405976783 | JV3: -1.276880857 | JW3: -0.4843056377 | JX3: -5.688913444 | JY3: -2.866570021 | JZ3: -1.685942287 | KA3: -2.413938828 | KB3: -1.286742187 | KC3: -2.337939617 | KD3: -10.50511231 | KE3: -0.8442050182 | KF3: 0.01016093907 | KG3: -3.689406044 | KH3: -7.777732186 | KI3: -0.08317758268 | KJ3: -3.891853054 | KK3: -0.5761600842 | KL3: 0.2029505378 | KM3: 0.9766775783 | KN3: 1.918245429 | KO3: -2.304084066 | KP3: -2.228477816 | KQ3: -0.8775167411 | KR3: -1.321294739 | KS3: -3.499011917 | KT3: 0.2387566549 | KU3: 2.367168721 | KV3: -2.576444877 | KW3: -2.161540211 | KX3: 2.928471607 | KY3: -0.4309689801 | KZ3: -3.324083003 | LA3: -1.896306219 | LB3: -1.11657033 | LC3: 2.80081671 | LD3: 3.029103997 | LE3: 1.215534106 | LF3: 0.2202393469 | LG3: 1.996416122 | LH3: 4.012489841 | LI3: 11.33357648 | LJ3: 3.568250054 | LK3: -3.421132314 | LL3: 0.2954432072 | LM3: 0.4662080605 | LN3: -2.201217192 | LO3: 1.972072016 | LP3: -5.173968291 | LQ3: -0.7621532997 | LR3: 1.378325805 | LS3: 5.779997654 | LT3: -0.7515068418 | LU3: -0.623345697 | LV3: -5.30278383 | LW3: 2.709756263 | LX3: 6.47644603 | LY3: 0.4920171628 | LZ3: 3.935018071 | MA3: 2.266233694 | MB3: 0.6895440492 | MC3: 7.521635302 | MD3: -4.016985523 | ME3: -1.597671245 | MF3: -4.719519238 | MG3: 2.610451022 | MH3: 7.24123634 | MI3: 0.9522005025 | MJ3: 1.603319847 | MK3: -3.186043037 | ML3: 1.730437431 | MM3: 1.28292675 | MN3: 3.997896429 | MO3: 1.132055813 | MP3: -2.118354045 | MQ3: 6.581378044 | MR3: 4.568903363 | MS3: 5.039823203 | MT3: -0.6662369623 | MU3: -6.259596385 | MV3: -1.059097822 | MW3: 0.9267391278 | MX3: 2.956469583 | MY3: 0.6193342001 | MZ3: 0.2165956759 | NA3: - | NB3: 0.8605065559 | NC3: - | ND3: - | NE3: - | NF3: - | NG3: - | NH3: - | NI3: - | NJ3: - | NK3: - | NL3: - | NM3: - | NN3: - | NO3: - | NP3: - | NQ3: - | NR3: - | NS3: - | NT3: - | NU3: - | NV3: - | NW3: - | NX3: - | NY3: - | NZ3: - | OA3: - | OB3: -
B5: Laboralidad | C5: 0.296 | D5: -0.174 | E5: -4.103 | F5: 3.162 | G5: -0.22 | H5: -0.979 | I5: -0.355 | J5: 1.522 | K5: 0.711 | L5: 0.659 | M5: -0.187 | N5: -0.321 | O5: -0.009 | P5: -0.512 | Q5: 3.429 | R5: 3.002 | S5: -2.1 | T5: -0.7 | U5: 0.458 | V5: 1.354 | W5: -1.881 | X5: 0.646 | Y5: -0.546 | Z5: 0.172 | AA5: 1.685 | AB5: 0.398 | AC5: -1.801 | AD5: -3.113 | AE5: 1.155 | AF5: 0 | AG5: 0.582 | AH5: 0.405 | AI5: -0.475 | AJ5: 0.66 | AK5: 0.56 | AL5: -1.309 | AM5: 0.115 | AN5: 0.224 | AO5: -0.251 | AP5: -0.614 | AQ5: 0 | AR5: -0.101 | AS5: 0.464 | AT5: 0.147 | AU5: 0.153 | AV5: -1.271 | AW5: 0.261 | AX5: 0.301 | AY5: -0.53 | AZ5: 0 | BA5: -0.147 | BB5: -0.117 | BC5: 1.622 | BD5: 0 | BE5: 0.64 | BF5: -1.92 | BG5: 0.257 | BH5: 0.074 | BI5: 0.177 | BJ5: -0.287 | BK5: -0.842 | BL5: 0.617 | BM5: 0 | BN5: -0.73 | BO5: -0.034 | BP5: 0.697 | BQ5: 4.101 | BR5: -1.594 | BS5: 1.367 | BT5: -0.455 | BU5: -1.441 | BV5: 1.377 | BW5: -0.385 | BX5: -0.686 | BY5: 1.818 | BZ5: -1.065 | CA5: -0.946 | CB5: 0.204 | CC5: -0.757 | CD5: -3.517 | CE5: 1.474 | CF5: -1.475 | CG5: 0.471 | CH5: 1.412 | CI5: -1.384 | CJ5: 0.402 | CK5: 0.751 | CL5: -1.896 | CM5: 1.053 | CN5: 0.972 | CO5: -0.206 | CP5: -0.733 | CQ5: 0 | CR5: -1.504 | CS5: 1.124 | CT5: -1.399 | CU5: -0.655 | CV5: 1.621 | CW5: -0.666 | CX5: -0.521 | CY5: 0.862 | CZ5: -0.456 | DA5: -0.898 | DB5: -0.269 | DC5: -0.267 | DD5: 0 | DE5: 0.849 | DF5: 0.261 | DG5: 0.707 | DH5: 0.114 | DI5: -0.511 | DJ5: 1.596 | DK5: 1.162 | DL5: -1.538 | DM5: 0.554 | DN5: 1.482 | DO5: 0.368 | DP5: -0.158 | DQ5: 3.469 | DR5: 0.907 | DS5: -1.711 | DT5: 0.664 | DU5: 0.719 | DV5: -1.707 | DW5: 0.653 | DX5: -0.685 | DY5: 1.983 | DZ5: 0.074 | EA5: -1.546 | EB5: 0.213 | EC5: 2.364 | ED5: -3.601 | EE5: 0 | EF5: 0.037 | EG5: 0 | EH5: -0.378 | EI5: 0.149 | EJ5: 0.11 | EK5: -1.378 | EL5: -0.435 | EM5: -0.113 | EN5: -0.889 | EO5: -0.312 | EP5: -0.634 | EQ5: 0 | ER5: -4.713 | ES5: 4.104 | ET5: -0.071 | EU5: -1.802 | EV5: 0.867 | EW5: -0.575 | EX5: 1.067 | EY5: 0.973 | EZ5: 0.179 | FA5: 0.998 | FB5: 0.013 | FC5: 0.294 | FD5: 0 | FE5: 2.882 | FF5: -2.448 | FG5: -0.721 | FH5: 0.587 | FI5: 0.93 | FJ5: -0.387 | FK5: 0.685 | FL5: -0.109 | FM5: -0.608 | FN5: 0.707 | FO5: 0.148 | FP5: -1.617 | FQ5: 2.88 | FR5: 1.645 | FS5: 0.156 | FT5: 0.579 | FU5: 1.418 | FV5: -0.177 | FW5: 0.895 | FX5: 0.525 | FY5: -2.032 | FZ5: 0.763 | GA5: -0.075 | GB5: 0.394 | GC5: -0.914 | GD5: -3.074 | GE5: -2.987 | GF5: 2.743 | GG5: -0.072 | GH5: 0.337 | GI5: -0.903 | GJ5: 0.035 | GK5: 0 | GL5: -0.281 | GM5: -0.183 | GN5: 0.802 | GO5: -0.357 | GP5: 2.029 | GQ5: 0 | GR5: 3.038 | GS5: -4.179 | GT5: 0.331 | GU5: 0 | GV5: -0.148 | GW5: -0.179 | GX5: -1.069 | GY5: 0.518 | GZ5: -0.717 | HA5: -0.809 | HB5: -0.095 | HC5: 0.691 | HD5: 0 | HE5: -0.531 | HF5: 0.081 | HG5: -0.107 | HH5: -0.502 | HI5: 0.481 | HJ5: 0.141 | HK5: -1.423 | HL5: 1.191 | HM5: 0.159 | HN5: -0.719 | HO5: -0.042 | HP5: -0.248 | HQ5: 3.941 | HR5: -4.135 | HS5: 4.097 | HT5: -0.81 | HU5: -0.54 | HV5: 0.769 | HW5: -0.921 | HX5: 0.806 | HY5: 0.88 | HZ5: 0.244 | IA5: 1.275 | IB5: 0.4 | IC5: -1.24 | ID5: -3.484 | IE5: 2.601 | IF5: -3.206 | IG5: -0.163 | IH5: 0.859 | II5: 0.233 | IJ5: -1.127 | IK5: 0.91 | IL5: -1.105 | IM5: 0.335 | IN5: -0.488 | IO5: -0.484 | IP5: -0.457759008 | IQ5: 0.143985684 | IR5: 0.5292122268 | IS5: 0.233453082 | IT5: 0.5071803754 | IU5: 0.2015634461 | IV5: -0.4207223465 | IW5: 0.5890922735 | IX5: -0.3207902913 | IY5: -1.19697794 | IZ5: 0.006657718386 | JA5: 0.6225154859 | JB5: 0.05471488212 | JC5: 0.3550274208 | JD5: -0.05795492718 | JE5: 0.7634218047 | JF5: -0.5533988004 | JG5: 0.2489521669 | JH5: 0.02583782036 | JI5: -1.101286666 | JJ5: 0.3489061836 | JK5: 0.5593946395 | JL5: 0.1296485577 | JM5: 0.07578807624 | JN5: 0.7482581648 | JO5: 0.1399598903 | JP5: 1.549103039 | JQ5: 3.596057022 | JR5: -1.095361382 | JS5: -0.7446523791 | JT5: 0.2502793633 | JU5: -0.2114808733 | JV5: 0.228949218 | JW5: -0.05870729451 | JX5: -1.627074638 | JY5: 0.1611586939 | JZ5: -0.9014907204 | KA5: -1.07250599 | KB5: -0.2752330108 | KC5: 0.4103514615 | KD5: -2.926131018 | KE5: -2.703087497 | KF5: 3.266006512 | KG5: 0.1112651178 | KH5: -1.247700073 | KI5: 1.917838535 | KJ5: 0.1228959771 | KK5: 0.9665161309 | KL5: 2.208793899 | KM5: 0.7131009031 | KN5: -0.2438547273 | KO5: 0.192815811 | KP5: -1.035955537 | KQ5: 0.0401306341 | KR5: 2.344227184 | KS5: -2.081659079 | KT5: -0.805906976 | KU5: 0.2294566334 | KV5: 0.1561878131 | KW5: -0.6334353649 | KX5: 0.9809135644 | KY5: -0.08670542132 | KZ5: -0.2286359907 | LA5: 0.8359175449 | LB5: -0.003073060092 | LC5: -1.170338706 | LD5: 0.0229752762 | LE5: 0.1695831701 | LF5: 0.7107659596 | LG5: -0.2916877787 | LH5: 0.9695672553 | LI5: 0.09473247742 | LJ5: 0.4612684958 | LK5: -0.09263465938 | LL5: -1.127213362 | LM5: 0.2555718315 | LN5: -0.6495184632 | LO5: -0.06084387881 | LP5: 0.03197263459 | LQ5: 3.695408122 | LR5: -1.519013535 | LS5: 2.168085012 | LT5: 0.8354947538 | LU5: 0.3082530152 | LV5: -1.209510868 | LW5: 1.553536449 | LX5: 0.3338362899 | LY5: -0.8640226522 | LZ5: 0.36862927 | MA5: 1.716520376 | MB5: 0.5843869624 | MC5: 1.167871559 | MD5: -0.04473395156 | ME5: 2.677386615 | MF5: -3.650273606 | MG5: 0.5192634375 | MH5: 0.2899065427 | MI5: -0.161288939 | MJ5: -0.1939094924 | MK5: -0.4717365794 | ML5: 0.1855680983 | MM5: 0.3343452838 | MN5: -1.389162024 | MO5: -0.3421463677 | MP5: 1.505746064 | MQ5: -0.1398080441 | MR5: -2.825061289 | MS5: 2.265526873 | MT5: -0.4292095377 | MU5: -0.4864798512 | MV5: -0.7139615713 | MW5: -1.474233552 | MX5: -1.83270388 | MY5: 0.8744638921 | MZ5: -0.4452073377 | NA5: - | NB5: -0.336304488 | NC5: - | ND5: - | NE5: - | NF5: - | NG5: - | NH5: - | NI5: - | NJ5: - | NK5: - | NL5: - | NM5: - | NN5: - | NO5: - | NP5: - | NQ5: - | NR5: - | NS5: - | NT5: - | NU5: - | NV5: - | NW5: - | NX5: - | NY5: - | NZ5: - | OA5: - | OB5: -
B6: Temperatura | C6: 2.884 | D6: 14.092 | E6: 1.852 | F6: 1.05 | G6: 1.764 | H6: -0.073 | I6: -0.525 | J6: 0.801 | K6: -0.156 | L6: 1.83 | M6: 0.495 | N6: -5.09 | O6: 1.465 | P6: 4.636 | Q6: -2.084 | R6: 0.925 | S6: -2.225 | T6: -1.228 | U6: -0.641 | V6: -1.079 | W6: -1.34 | X6: -1.07 | Y6: -0.104 | Z6: -3.972 | AA6: -1.243 | AB6: -0.731 | AC6: -3.476 | AD6: -0.045 | AE6: 2.054 | AF6: 0.239 | AG6: -0.789 | AH6: 2.193 | AI6: -0.289 | AJ6: 0.586 | AK6: -0.405 | AL6: 0.779 | AM6: 5.614 | AN6: 0.29 | AO6: 0.495 | AP6: -2.843 | AQ6: -2.322 | AR6: -5.662 | AS6: 0.144 | AT6: 0 | AU6: 1.316 | AV6: 2.982 | AW6: 0.87 | AX6: 0.419 | AY6: -4.117 | AZ6: -5.693 | BA6: -1.26 | BB6: -1.446 | BC6: -1.869 | BD6: -5.173 | BE6: 2.7 | BF6: -1.884 | BG6: 0 | BH6: -0.703 | BI6: -0.219 | BJ6: -0.926 | BK6: -0.567 | BL6: -0.01 | BM6: 0.585 | BN6: -0.701 | BO6: -0.736 | BP6: -2.964 | BQ6: 5.951 | BR6: 1.686 | BS6: -0.401 | BT6: 0.298 | BU6: 0.512 | BV6: -2.075 | BW6: -2.212 | BX6: -0.818 | BY6: 0.189 | BZ6: 2.588 | CA6: -0.132 | CB6: 0.181 | CC6: 3.38 | CD6: -8.149 | CE6: -6.673 | CF6: -1.535 | CG6: -0.295 | CH6: -1.332 | CI6: -1.464 | CJ6: 1.36 | CK6: 1.904 | CL6: 0.4 | CM6: -1.107 | CN6: -0.636 | CO6: -1.222 | CP6: -3.451 | CQ6: 1.233 | CR6: 1.793 | CS6: 2.771 | CT6: 0.24 | CU6: 0.259 | CV6: 2.293 | CW6: 0.422 | CX6: -0.188 | CY6: 0.011 | CZ6: -0.589 | DA6: 2.29 | DB6: 0.559 | DC6: 1.251 | DD6: 4.811 | DE6: 2.356 | DF6: -1.489 | DG6: -0.226 | DH6: 3.975 | DI6: 0.059 | DJ6: -0.065 | DK6: -0.351 | DL6: -0.469 | DM6: 3.002 | DN6: -2.985 | DO6: 0.786 | DP6: 3.483 | DQ6: -5.791 | DR6: -1.126 | DS6: 1.434 | DT6: 0 | DU6: 0.21 | DV6: -1.433 | DW6: -1.148 | DX6: -0.11 | DY6: 0.398 | DZ6: -2.551 | EA6: -2.244 | EB6: -0.758 | EC6: -6.698 | ED6: 3.577 | EE6: -1.786 | EF6: -0.613 | EG6: 2.034 | EH6: -0.183 | EI6: -0.494 | EJ6: 0.763 | EK6: -0.289 | EL6: -0.437 | EM6: 2.543 | EN6: 7.652 | EO6: 0.477 | EP6: 0.443 | EQ6: -0.836 | ER6: 2.338 | ES6: 0.315 | ET6: -1.045 | EU6: 0.196 | EV6: 0.426 | EW6: -1.692 | EX6: -0.138 | EY6: 0.262 | EZ6: -4.483 | FA6: -8.377 | FB6: -1.124 | FC6: 0.756 | FD6: 3.92 | FE6: -1.761 | FF6: -1.407 | FG6: -0.362 | FH6: 3.158 | FI6: 1.657 | FJ6: 3.887 | FK6: 0.509 | FL6: 0.849 | FM6: -0.598 | FN6: 3.215 | FO6: 1.146 | FP6: -2.01 | FQ6: -1.515 | FR6: 3.62 | FS6: 1.067 | FT6: 0.243 | FU6: -1.917 | FV6: -0.61 | FW6: -1.815 | FX6: 0.273 | FY6: -0.033 | FZ6: 1.32 | GA6: 0.195 | GB6: -0.129 | GC6: 6.111 | GD6: 7.62 | GE6: 0.804 | GF6: 0.018 | GG6: -0.213 | GH6: 1.459 | GI6: 1.172 | GJ6: 0.128 | GK6: -0.416 | GL6: -0.535 | GM6: 0.161 | GN6: 1.911 | GO6: 1.551 | GP6: -0.248 | GQ6: -3.039 | GR6: -1.688 | GS6: -0.62 | GT6: -0.125 | GU6: -1.561 | GV6: 0.969 | GW6: -0.254 | GX6: 0.419 | GY6: -0.014 | GZ6: -2.561 | HA6: -2.378 | HB6: -0.949 | HC6: -2.878 | HD6: -6.228 | HE6: -0.978 | HF6: -0.264 | HG6: -0.097 | HH6: -1.908 | HI6: -3.348 | HJ6: -0.323 | HK6: -0.87 | HL6: 0.136 | HM6: 2.008 | HN6: -0.151 | HO6: -1.295 | HP6: -1.76 | HQ6: -0.918 | HR6: 0.022 | HS6: -1.587 | HT6: -0.152 | HU6: 0.518 | HV6: -0.684 | HW6: 0.433 | HX6: -0.081 | HY6: 0.053 | HZ6: 1.821 | IA6: 1.545 | IB6: -0.058 | IC6: 2.714 | ID6: 3.086 | IE6: -0.904 | IF6: 1.511 | IG6: 0.111 | IH6: 0.894 | II6: 0.462 | IJ6: 0.287 | IK6: 0.046 | IL6: 0.493 | IM6: -3.065 | IN6: -0.585 | IO6: 0.441 | IP6: -0.8657913558 | IQ6: 2.42032466 | IR6: 3.509492984 | IS6: -0.8717322814 | IT6: 1.542936883 | IU6: -3.093136213 | IV6: 0.4214940512 | IW6: -1.216729591 | IX6: -0.4077135074 | IY6: -1.38481098 | IZ6: 4.247789386 | JA6: 0.732971179 | JB6: 0.3968313055 | JC6: -1.248087403 | JD6: -4.014771979 | JE6: -0.804359407 | JF6: -1.744702914 | JG6: -0.865374704 | JH6: 1.363455202 | JI6: -2.926771017 | JJ6: -0.03061135529 | JK6: 2.213735083 | JL6: 2.670395451 | JM6: -3.00599055 | JN6: -3.299189019 | JO6: -1.025588359 | JP6: -1.647672004 | JQ6: 4.637016253 | JR6: -2.961695477 | JS6: 2.367392201 | JT6: 1.564386136 | JU6: 2.101067365 | JV6: 1.2 | JW6: 1.554005861 | JX6: -1.280742312 | JY6: -1.694428004 | JZ6: 2.057000578 | KA6: 1.050191956 | KB6: 0.6935701808 | KC6: 1.047971772 | KD6: -1.768749361 | KE6: 3.957558879 | KF6: -0.2203895513 | KG6: -1.595037794 | KH6: -4.220759126 | KI6: 1.403152453 | KJ6: -1.71673454 | KK6: -0.1557453867 | KL6: -0.153569594 | KM6: 0.08425683779 | KN6: 0.3377200174 | KO6: -0.2720628307 | KP6: -0.6861463362 | KQ6: -0.764359563 | KR6: -3.475087216 | KS6: -1.89223299 | KT6: -1.408605556 | KU6: 1.895889795 | KV6: -2.621113463 | KW6: -1.376487769 | KX6: 0.616361662 | KY6: 0.9028898519 | KZ6: -2.112354777 | LA6: -0.4790035517 | LB6: -0.9883665227 | LC6: 0.4791452831 | LD6: 1.934612852 | LE6: 1.022842526 | LF6: -0.668519056 | LG6: 2.597403817 | LH6: 2.519777255 | LI6: 5.598155003 | LJ6: 0.8076896454 | LK6: -2.92294914 | LL6: -2.2928997 | LM6: -1.193334064 | LN6: -3.923415113 | LO6: 0.3593659769 | LP6: -1.821805315 | LQ6: -3.255694889 | LR6: 0.9427169643 | LS6: 1.13402564 | LT6: -1.351189729 | LU6: -0.7441406154 | LV6: -1.006512979 | LW6: 0.7780810015 | LX6: 2.175877742 | LY6: 0.3957429904 | LZ6: 2.412905178 | MA6: 2.466909354 | MB6: 0.09209359016 | MC6: 1.119699176 | MD6: -5.872714076 | ME6: -2.73258955 | MF6: -0.7979601941 | MG6: 1.553344204 | MH6: 2.475161609 | MI6: -0.00507114995 | MJ6: 0.1159664117 | MK6: -1.04871055 | ML6: 1.199696455 | MM6: -2.041797247 | MN6: 0.0681744571 | MO6: -0.1664855352 | MP6: -1.608270599 | MQ6: 3.696207926 | MR6: 2.374373914 | MS6: 1.106157776 | MT6: -1.543276101 | MU6: -2.674736971 | MV6: -0.3539918828 | MW6: 0.7009169723 | MX6: 1.78944886 | MY6: -0.2212522252 | MZ6: 1.525814132 | NA6: - | NB6: 0.3628145955 | NC6: - | ND6: - | NE6: - | NF6: - | NG6: - | NH6: - | NI6: - | NJ6: - | NK6: - | NL6: - | NM6: - | NN6: - | NO6: - | NP6: - | NQ6: - | NR6: - | NS6: - | NT6: - | NU6: - | NV6: - | NW6: - | NX6: - | NY6: - | NZ6: - | OA6: - | OB6: -
B7: Demanda corregida | C7: 2.016 | D7: 0.204 | E7: 1.914 | F7: 0.725 | G7: 3.421 | H7: 1.116 | I7: 3.57 | J7: 0.992 | K7: 3.773 | L7: 4.443 | M7: 3.611 | N7: 3.204 | O7: 2.42 | P7: 0.243 | Q7: 2.149 | R7: 3.097 | S7: 5.516 | T7: 1.836 | U7: -1.231 | V7: 1.175 | W7: 5.283 | X7: 0.869 | Y7: -0.491 | Z7: -0.631 | AA7: -2.65 | AB7: 1.239 | AC7: 0.196 | AD7: -1.664 | AE7: -1.627 | AF7: -2.88 | AG7: -1.365 | AH7: 1.047 | AI7: -0.245 | AJ7: -0.424 | AK7: -1.367 | AL7: 2.111 | AM7: 0.995 | AN7: 4.149 | AO7: -0.127 | AP7: 3.795 | AQ7: 4.296 | AR7: 2.818 | AS7: 5.92 | AT7: 5.727 | AU7: 5.747 | AV7: 5.978 | AW7: 7.021 | AX7: 5.925 | AY7: 5.588 | AZ7: 5.173 | BA7: 4.357 | BB7: 5.128 | BC7: 6.657 | BD7: 4.595 | BE7: 6.592 | BF7: 5.762 | BG7: 5.814 | BH7: 4.693 | BI7: 2.336 | BJ7: 5.058 | BK7: 4.044 | BL7: 3.65 | BM7: 2.504 | BN7: 2.636 | BO7: 4.526 | BP7: 1.296 | BQ7: 1.839 | BR7: 1.728 | BS7: 0.456 | BT7: 0.853 | BU7: 3.647 | BV7: 3.951 | BW7: 3.784 | BX7: 2.081 | BY7: 2.194 | BZ7: 3.633 | CA7: 5.051 | CB7: 2.564 | CC7: 4.184 | CD7: 4.117 | CE7: 0.818 | CF7: 10.913 | CG7: 4.496 | CH7: 2.012 | CI7: 5.263 | CJ7: 4.299 | CK7: 8.187 | CL7: 8.262 | CM7: 5.085 | CN7: 7.517 | CO7: 5.368 | CP7: 6.763 | CQ7: 8.334 | CR7: 10.812 | CS7: 2.089 | CT7: 6.057 | CU7: 8.43 | CV7: 6.468 | CW7: 6.727 | CX7: 4.543 | CY7: 3.123 | CZ7: 6.588 | DA7: 5.906 | DB7: 6.294 | DC7: 5.583 | DD7: 4.431 | DE7: 3.88 | DF7: 3.552 | DG7: 6.248 | DH7: 2.698 | DI7: 6.846 | DJ7: 4.489 | DK7: 5.011 | DL7: 6.515 | DM7: 7.02 | DN7: 7.427 | DO7: 5.353 | DP7: 7.042 | DQ7: 7.133 | DR7: 6.588 | DS7: 8.608 | DT7: 5.67 | DU7: 5.927 | DV7: 5.059 | DW7: 7.256 | DX7: 7.53 | DY7: 4.392 | DZ7: 6.567 | EA7: 4.872 | EB7: 6.339 | EC7: 6.823 | ED7: 5.149 | EE7: 7.026 | EF7: 2.75 | EG7: 5.204 | EH7: 6.735 | EI7: 6.796 | EJ7: 6.247 | EK7: 4.742 | EL7: 5.686 | EM7: 2.805 | EN7: 3.388 | EO7: 5.284 | EP7: 5.943 | EQ7: 3.898 | ER7: 4.679 | ES7: 5.166 | ET7: 4.125 | EU7: 3.298 | EV7: 3.368 | EW7: 1.263 | EX7: 1.949 | EY7: 4.148 | EZ7: 4.558 | FA7: 5.456 | FB7: 4.003 | FC7: 3.387 | FD7: 6.515 | FE7: 3.873 | FF7: 3.787 | FG7: 4.362 | FH7: 5.1 | FI7: 6.025 | FJ7: 9.347 | FK7: 5.995 | FL7: 5.481 | FM7: 6.983 | FN7: 4.772 | FO7: 5.455 | FP7: 4.28 | FQ7: 2.414 | FR7: 5.913 | FS7: 6.15 | FT7: 3.47 | FU7: 2.995 | FV7: 3.758 | FW7: 2.386 | FX7: 5.319 | FY7: 4.24 | FZ7: 4.954 | GA7: 4.955 | GB7: 4.224 | GC7: 5.148 | GD7: 3.167 | GE7: 4.329 | GF7: 1.558 | GG7: 3.982 | GH7: 3.971 | GI7: 4.032 | GJ7: 2.807 | GK7: 1.443 | GL7: 1.325 | GM7: 2.248 | GN7: 3.765 | GO7: 3.131 | GP7: 2.734 | GQ7: 4.326 | GR7: 3.115 | GS7: 2.866 | GT7: 5.879 | GU7: 3.266 | GV7: 6.139 | GW7: 5.829 | GX7: 7.542 | GY7: 5.82 | GZ7: 2.905 | HA7: 4.912 | HB7: 4.617 | HC7: 5.22 | HD7: 5.904 | HE7: 4.23 | HF7: 8.635 | HG7: 2.616 | HH7: 3.511 | HI7: 2.059 | HJ7: 2.654 | HK7: 2.579 | HL7: 2.42 | HM7: 7.196 | HN7: 4.533 | HO7: 4.261 | HP7: 3.142 | HQ7: 3.413 | HR7: 2.989 | HS7: 3.588 | HT7: 1.381 | HU7: 0.025 | HV7: 1.613 | HW7: 3.411 | HX7: 0.149 | HY7: -1.357 | HZ7: -4.13 | IA7: -5.224 | IB7: 0.713 | IC7: -4.185 | ID7: -6.969 | IE7: -7.911 | IF7: -8.858 | IG7: -6.196 | IH7: -4.317 | II7: -4.203 | IJ7: -1.833 | IK7: -4.187 | IL7: -3.173 | IM7: -3.632 | IN7: -0.82 | IO7: -4.688 | IP7: 1.240599447 | IQ7: 2.345420471 | IR7: 4.993199951 | IS7: 4.314299007 | IT7: 1.925097763 | IU7: 2.396688833 | IV7: 3.212229133 | IW7: 2.08116657 | IX7: 2.205774092 | IY7: 3.436637818 | IZ7: 2.37041875 | JA7: 1.790143585 | JB7: 2.662201324 | JC7: 0.2968922886 | JD7: 1.573593922 | JE7: -0.3100034138 | JF7: -1.453287707 | JG7: -0.1348222979 | JH7: 0.05062621297 | JI7: -1.294753569 | JJ7: 0.0003516868641 | JK7: -1.498510376 | JL7: -3.821164005 | JM7: -3.555084894 | JN7: -4.329545758 | JO7: -1.23321508 | JP7: -2.231208702 | JQ7: -0.9145196284 | JR7: -2.064538454 | JS7: -0.24003022 | JT7: -2.409190183 | JU7: -1.96364626 | JV7: -2.705830075 | JW7: -1.979604204 | JX7: -2.781096493 | JY7: -1.333300711 | JZ7: -2.841452144 | KA7: -2.391624794 | KB7: -1.701000906 | KC7: -3.796262851 | KD7: -5.774219058 | KE7: -2.098676401 | KF7: -3.035456021 | KG7: -2.205633368 | KH7: -2.309272987 | KI7: -3.404168571 | KJ7: -2.298014492 | KK7: -1.386930828 | KL7: -1.852273767 | KM7: 0.1793198374 | KN7: 1.824380139 | KO7: -2.222821705 | KP7: -0.5063759421 | KQ7: -0.1532878122 | KR7: -0.1904347063 | KS7: 0.4748801521 | KT7: 2.453269187 | KU7: 0.2418222926 | KV7: -0.1115192277 | KW7: -0.1516170769 | KX7: 1.33119638 | KY7: -1.247153411 | KZ7: -0.9830922354 | LA7: -2.253220212 | LB7: -0.1257412732 | LC7: 3.492010132 | LD7: 1.071515868 | LE7: 0.02310841004 | LF7: 0.1779924432 | LG7: -0.3092999163 | LH7: 0.5231453306 | LI7: 5.640689001 | LJ7: 2.299291913 | LK7: -0.4055485144 | LL7: 3.71555627 | LM7: 1.403970293 | LN7: 2.371716384 | LO7: 1.687046361 | LP7: -3.384135611 | LQ7: -1.201866533 | LR7: 1.954622376 | LS7: 2.477887003 | LT7: -0.2358118662 | LU7: -0.1874580968 | LV7: -3.086759983 | LW7: 0.3781388121 | LX7: 3.966731998 | LY7: 0.9602968246 | LZ7: 1.153483623 | MA7: -1.917196036 | MB7: 0.01306349673 | MC7: 5.234064567 | MD7: 1.900462505 | ME7: -1.54246831 | MF7: -0.2712854384 | MG7: 0.5378433809 | MH7: 4.476168188 | MI7: 1.118560591 | MJ7: 1.681262927 | MK7: -1.665595907 | ML7: 0.3451728781 | MM7: 2.990378713 | MN7: 5.318883996 | MO7: 1.640687716 | MP7: -2.015829509 | MQ7: 3.024978162 | MR7: 5.019590739 | MS7: 1.668138554 | MT7: 1.306248676 | MU7: -3.098379563 | MV7: 0.008855631973 | MW7: 1.700055707 | MX7: 2.999724603 | MY7: -0.03387746677 | MZ7: -0.864011118 | NA7: - | NB7: 0.8339964485 | NC7: - | ND7: - | NE7: - | NF7: - | NG7: - | NH7: - | NI7: - | NJ7: - | NK7: - | NL7: - | NM7: - | NN7: - | NO7: - | NP7: - | NQ7: - | NR7: - | NS7: - | NT7: - | NU7: - | NV7: - | NW7: - | NX7: - | NY7: - | NZ7: - | OA7: - | OB7: -
B9: Componentes mensuales del crecimiento de la demanda Islas Baleares (%) | C9: 2011-01-01 | D9: 2011-02-01 | E9: 2011-03-01 | F9: 2011-04-01 | G9: 2011-05-01 | H9: 2011-06-01 | I9: 2011-07-01 | J9: 2011-08-01 | K9: 2011-09-01 | L9: 2011-10-01 | M9: 2011-11-01 | N9: 2011-12-01 | O9: 2011 | P9: 2012-01-01 | Q9: 2012-02-01 | R9: 2012-03-01 | S9: 2012-04-01 | T9: 2012-05-01 | U9: 2012-06-01 | V9: 2012-07-01 | W9: 2012-08-01 | X9: 2012-09-01 | Y9: 2012-10-01 | Z9: 2012-11-01 | AA9: 2012-12-01 | AB9: 2012 | AC9: 2013-01-01 | AD9: 2013-02-01 | AE9: 2013-03-01 | AF9: 2013-04-01 | AG9: 2013-05-01 | AH9: 2013-06-01 | AI9: 2013-07-01 | AJ9: 2013-08-01 | AK9: 2013-09-01 | AL9: 2013-10-01 | AM9: 2013-11-01 | AN9: 2013-12-01 | AO9: 2013 | AP9: 2014-01-01 | AQ9: 2014-02-01 | AR9: 2014-03-01 | AS9: 2014-04-01 | AT9: 2014-05-01 | AU9: 2014-06-01 | AV9: 2014-07-01 | AW9: 2014-08-01 | AX9: 2014-09-01 | AY9: 2014-10-01 | AZ9: 2014-11-01 | BA9: 2014-12-01 | BB9: 2014 | BC9: 2015-01-01 | BD9: 2015-02-01 | BE9: 2015-03-01 | BF9: 2015-04-01 | BG9: 2015-05-01 | BH9: 2015-06-01 | BI9: 2015-07-01 | BJ9: 2015-08-01 | BK9: 2015-09-01 | BL9: 2015-10-01 | BM9: 2015-11-01 | BN9: 2015-12-01 | BO9: 2015 | BP9: 2016-01-01 | BQ9: 2016-02-01 | BR9: 2016-03-01 | BS9: 2016-04-01 | BT9: 2016-05-01 | BU9: 2016-06-01 | BV9: 2016-07-01 | BW9: 2016-08-01 | BX9: 2016-09-01 | BY9: 2016-10-01 | BZ9: 2016-11-01 | CA9: 2016-12-01 | CB9: 2016 | CC9: 2017-01-01 | CD9: 2017-02-01 | CE9: 2017-03-01 | CF9: 2017-04-01 | CG9: 2017-05-01 | CH9: 2017-06-01 | CI9: 2017-07-01 | CJ9: 2017-08-01 | CK9: 2017-09-01 | CL9: 2017-10-01 | CM9: 2017-11-01 | CN9: 2017-12-01 | CO9: 2017 | CP9: 2018-01-01 | CQ9: 2018-02-01 | CR9: 2018-03-01 | CS9: 2018-04-01 | CT9: 2018-05-01 | CU9: 2018-06-01 | CV9: 2018-07-01 | CW9: 2018-08-01 | CX9: 2018-09-01 | CY9: 2018-10-01 | CZ9: 2018-11-01 | DA9: 2018-12-01 | DB9: 2018 | DC9: 2019-01-01 | DD9: 2019-02-01 | DE9: 2019-03-01 | DF9: 2019-04-01 | DG9: 2019-05-01 | DH9: 2019-06-01 | DI9: 2019-07-01 | DJ9: 2019-08-01 | DK9: 2019-09-01 | DL9: 2019-10-01 | DM9: 2019-11-01 | DN9: 2019-12-01 | DO9: 2019 | DP9: 2020-01-01 | DQ9: 2020-02-01 | DR9: 2020-03-01 | DS9: 2020-04-01 | DT9: 2020-05-01 | DU9: 2020-06-01 | DV9: 2020-07-01 | DW9: 2020-08-01 | DX9: 2020-09-01 | DY9: 2020-10-01 | DZ9: 2020-11-01 | EA9: 2020-12-01 | EB9: 2020
B10: Variación mensual | C10: -2.829063772 | D10: -5.431847972 | E10: -3.932110892 | F10: -4.757417678 | G10: 4.165429587 | H10: 5.889656501 | I10: -5.281475279 | J10: 2.321776936 | K10: 6.630780712 | L10: 0.9930940227 | M10: -8.021167778 | N10: -12.12726058 | O10: -1.717467165 | P10: -3.722426793 | Q10: 17.3028986 | R10: -4.256365426 | S10: 1.873284601 | T10: -1.052070161 | U10: 5.984254856 | V10: 2.381407118 | W10: 5.48863103 | X10: -7.583439221 | Y10: -0.1801295106 | Z10: -0.183550477 | AA10: 1.331836594 | AB10: 1.418351486 | AC10: -3.099285614 | AD10: -16.17733841 | AE10: -2.515713097 | AF10: -1.046836105 | AG10: -1.886869993 | AH10: -10.17697477 | AI10: 1.507506708 | AJ10: -6.416430707 | AK10: -0.03145828305 | AL10: 2.994808169 | AM10: 6.703464886 | AN10: 3.636765653 | AO10: -2.654473816 | AP10: -4.591606114 | AQ10: -9.147628008 | AR10: -2.338247969 | AS10: -2.04255656 | AT10: -1.051050595 | AU10: 5.961423969 | AV10: -3.430407666 | AW10: -0.625053322 | AX10: 11.18249653 | AY10: -1.560199268 | AZ10: -10.18922883 | BA10: -4.755246393 | BB10: -1.577503212 | BC10: 6.00897491 | BD10: 12.47712237 | BE10: 5.764898203 | BF10: 1.966255081 | BG10: 3.076599718 | BH10: 2.986937325 | BI10: 16.04323845 | BJ10: 4.565533429 | BK10: -8.04824153 | BL10: -1.648192968 | BM10: 3.968133175 | BN10: -2.086807868 | BO10: 3.773958005 | BP10: -8.982431639 | BQ10: -6.75066195 | BR10: 2.427853248 | BS10: 4.270147551 | BT10: 4.751274986 | BU10: 2.002938828 | BV10: -7.64633815 | BW10: -0.8390892725 | BX10: 8.731347406 | BY10: 6.870651881 | BZ10: 4.406305992 | CA10: 2.820983679 | CB10: 0.6085303347 | CC10: 16.46649546 | CD10: -1.923473582 | CE10: -8.881846764 | CF10: 0.522847516 | CG10: 2.337611112 | CH10: 8.42799767 | CI10: 5.489672007 | CJ10: 8.636077065 | CK10: -5.737434884 | CL10: -0.5797589208 | CM10: 4.916089804 | CN10: 9.627230354 | CO10: 3.318203632 | CP10: -8.553380072 | CQ10: 15.66859751 | CR10: 12.9189579 | CS10: 2.796939136 | CT10: -1.690983428 | CU10: -7.735806584 | CV10: 1.145959691 | CW10: -0.4120871112 | CX10: 7.629518646 | CY10: 0.05815678692 | CZ10: -0.2233567381 | DA10: - | DB10: 1.401423959 | DC10: - | DD10: - | DE10: - | DF10: - | DG10: - | DH10: - | DI10: - | DJ10: - | DK10: - | DL10: - | DM10: - | DN10: - | DO10: - | DP10: - | DQ10: - | DR10: - | DS10: - | DT10: - | DU10: - | DV10: - | DW10: - | DX10: - | DY10: - | DZ10: - | EA10: - | EB10: -
B12: Laboralidad | C12: -0.08689081304 | D12: 0.04729281624 | E12: 0.1615730015 | F12: -0.233700695 | G12: -0.0526240226 | H12: 0.01799787788 | I12: -0.4714651898 | J12: -0.04034046041 | K12: -0.008267698 | L12: 0.05067795561 | M12: 0.1103540892 | N12: -0.039444838 | O12: -0.04427113824 | P12: 0.2791290729 | Q12: 0.03392372298 | R12: -0.2401948423 | S12: -0.2780523131 | T12: 0.5339284361 | U12: -0.2465522179 | V12: 0.1568711496 | W12: 0.04780132913 | X12: -0.6245359116 | Y12: 0.02702218958 | Z12: 0.5555204737 | AA12: -0.5129987139 | AB12: -0.02666060447 | AC12: 0.5256533834 | AD12: -2.851402193 | AE12: -1.15917233 | AF12: 0.9971151329 | AG12: -0.05149280936 | AH12: -0.5066462706 | AI12: 0.4530796636 | AJ12: -0.1691714432 | AK12: 0.1590062822 | AL12: 1.15194587 | AM12: -0.7266715315 | AN12: 0.6460173739 | AO12: -0.1367385641 | AP12: -0.588854055 | AQ12: 0.0370180389 | AR12: 0.7895336521 | AS12: -0.3022934025 | AT12: 0.5253854225 | AU12: 0.5598432627 | AV12: 0.2819874967 | AW12: -0.03505944478 | AX12: 0.7543821213 | AY12: 0.2951763757 | AZ12: 0.08134418344 | BA12: 0.3344148791 | BB12: 0.2357214352 | BC12: -0.02480016708 | BD12: 0.5917231782 | BE12: 0.5668382758 | BF12: -0.0153667796 | BG12: -0.4488366097 | BH12: 0.541535409 | BI12: 0.146036335 | BJ12: 0.2372782012 | BK12: 0.1330687717 | BL12: -0.590234989 | BM12: 0.2902058231 | BN12: 0.6484564459 | BO12: 0.1662062103 | BP12: 0.4095620366 | BQ12: 3.101546155 | BR12: -0.2667953626 | BS12: 0.6811266363 | BT12: 0.5301052559 | BU12: 0.05481864305 | BV12: -0.6375018902 | BW12: 0.2270155314 | BX12: -0.0405166131 | BY12: -0.530490309 | BZ12: -0.03199429675 | CA12: -0.4740737621 | CB12: 0.2147095695 | CC12: -0.6373427432 | CD12: -4.330601996 | CE12: 0.008566320185 | CF12: -1.578349448 | CG12: -0.6633352445 | CH12: -0.4117272381 | CI12: -0.4080898904 | CJ12: -0.2264096795 | CK12: -0.4443485309 | CL12: -0.3614095261 | CM12: -0.1205382762 | CN12: -2.450406696 | CO12: -0.3765305747 | CP12: 0.4294817027 | CQ12: 0.03817878306 | CR12: -1.099937499 | CS12: 0.7593479351 | CT12: 0.05518034254 | CU12: -0.1967168863 | CV12: 0.2154040028 | CW12: 0.0184509931 | CX12: -0.5215605171 | CY12: 0.6956962633 | CZ12: 0.1966052114 | DA12: - | DB12: 0.06517618915 | DC12: - | DD12: - | DE12: - | DF12: - | DG12: - | DH12: - | DI12: - | DJ12: - | DK12: - | DL12: - | DM12: - | DN12: - | DO12: - | DP12: - | DQ12: - | DR12: - | DS12: - | DT12: - | DU12: - | DV12: - | DW12: - | DX12: - | DY12: - | DZ12: - | EA12: - | EB12: -
B13: Temperatura | C13: 0.3909389993 | D13: -3.308961779 | E13: -2.149255881 | F13: -4.839249785 | G13: -0.06698570144 | H13: 1.202637527 | I13: -2.459630014 | J13: 0.3725810313 | K13: 2.724027466 | L13: 0.9691131286 | M13: -4.668995814 | N13: -5.829403283 | O13: -1.470159698 | P13: -4.159078406 | Q13: 10.71073678 | R13: -2.409098043 | S13: 4.765206093 | T13: -0.3422181193 | U13: 3.035440703 | V13: 3.347246192 | W13: 3.222335102 | X13: -2.120326602 | Y13: -0.8340943862 | Z13: 1.339256514 | AA13: 1.924770646 | AB13: 1.53528161 | AC13: 0.1388542917 | AD13: -6.160034617 | AE13: -0.1131546821 | AF13: -1.776293351 | AG13: 0.2788477685 | AH13: -4.141197887 | AI13: -1.329210848 | AJ13: -2.339453086 | AK13: 0.3477516687 | AL13: 1.814490914 | AM13: 5.300844606 | AN13: 3.233178754 | AO13: -1.01447582 | AP13: 0.2254612197 | AQ13: -4.594425487 | AR13: 0.07456599501 | AS13: -1.412501241 | AT13: -1.149795014 | AU13: 5.383232915 | AV13: 1.327470949 | AW13: 2.013317003 | AX13: 4.525020791 | AY13: 1.362492098 | AZ13: -6.04451699 | BA13: -2.055532713 | BB13: 0.1895269061 | BC13: 1.587938323 | BD13: 6.640662546 | BE13: 2.215393244 | BF13: -0.3379793891 | BG13: 3.213333501 | BH13: 1.611746935 | BI13: 6.139037824 | BJ13: 1.591745429 | BK13: -1.808784746 | BL13: -3.119447383 | BM13: 1.254643195 | BN13: -9.287816954 | BO13: 0.9467205084 | BP13: -7.430604483 | BQ13: -9.80122335 | BR13: -1.670239046 | BS13: 0.3920458755 | BT13: -3.129526882 | BU13: -1.576292734 | BV13: -2.534783237 | BW13: -1.202188766 | BX13: 1.781405305 | BY13: 2.092419261 | BZ13: 0.5657943112 | CA13: 4.46527301 | CB13: -1.673589463 | CC13: 9.419945084 | CD13: -0.323802843 | CE13: -4.12114432 | CF13: -0.8797382938 | CG13: 2.409212122 | CH13: 3.043520208 | CI13: 0.5114148634 | CJ13: 4.314640339 | CK13: -2.195821893 | CL13: -0.8899725431 | CM13: 0.4110469374 | CN13: 3.368507057 | CO13: 1.268558692 | CP13: -6.291383707 | CQ13: 11.48665307 | CR13: 6.154463221 | CS13: 2.028052369 | CT13: -1.986006237 | CU13: -3.111398884 | CV13: -0.433090813 | CW13: -0.8491339799 | CX13: 3.832215187 | CY13: 0.7167911298 | CZ13: -0.9804401839 | DA13: - | DB13: 0.5418419025 | DC13: - | DD13: - | DE13: - | DF13: - | DG13: - | DH13: - | DI13: - | DJ13: - | DK13: - | DL13: - | DM13: - | DN13: - | DO13: - | DP13: - | DQ13: - | DR13: - | DS13: - | DT13: - | DU13: - | DV13: - | DW13: - | DX13: - | DY13: - | DZ13: - | EA13: - | EB13: -
B14: Demanda corregida | C14: -3.133111958 | D14: -2.170179009 | E14: -1.944428013 | F14: 0.3155328017 | G14: 4.285039311 | H14: 4.669021096 | I14: -2.350380075 | J14: 1.989536365 | K14: 3.915020945 | L14: -0.02669706148 | M14: -3.462526053 | N14: -6.25841246 | O14: -0.1928554071 | P14: 0.15752254 | Q14: 6.558238093 | R14: -1.607072541 | S14: -2.613869179 | T14: -1.243780478 | U14: 3.195366371 | V14: -1.122710224 | W14: 2.218494598 | X14: -4.838576707 | Y14: 0.6269426861 | Z14: -2.078327465 | AA14: -0.07993533829 | AB14: -0.0964948893 | AC14: -3.763793289 | AD14: -7.165901595 | AE14: -1.243386085 | AF14: -0.2676578873 | AG14: -2.114224952 | AH14: -5.529130616 | AI14: 2.383637893 | AJ14: -3.907806177 | AK14: -0.5382162339 | AL14: 0.02837138547 | AM14: 2.129291811 | AN14: -0.242430475 | AO14: -1.505471287 | AP14: -4.228213278 | AQ14: -4.590220559 | AR14: -3.202347616 | AS14: -0.327761916 | AT14: -0.4266410034 | AU14: 0.01834779043 | AV14: -5.039866112 | AW14: -2.60331088 | AX14: 5.903093614 | AY14: -3.217867742 | AZ14: -4.226056028 | BA14: -3.03412856 | BB14: -2.002751273 | BC14: 4.445836754 | BD14: 5.244736649 | BE14: 2.982666683 | BF14: 2.31960125 | BG14: 0.3121028265 | BH14: 0.8336549806 | BI14: 9.758164295 | BJ14: 2.736509799 | BK14: -6.372525556 | BL14: 2.061489404 | BM14: 2.423284156 | BN14: 6.552552639 | BO14: 2.66064916 | BP14: -1.961389193 | BQ14: -0.05098475549 | BR14: 4.364887657 | BS14: 3.196975039 | BT14: 7.350696612 | BU14: 3.524412919 | BV14: -4.474053023 | BW14: 0.1360839619 | BX14: 6.990458714 | BY14: 5.308722929 | BZ14: 3.872505978 | CA14: -1.170215569 | CB14: 2.067410228 | CC14: 7.683893123 | CD14: 2.730931257 | CE14: -4.769268764 | CF14: 2.980935258 | CG14: 0.591734234 | CH14: 5.7962047 | CI14: 5.386347034 | CJ14: 4.547846405 | CK14: -3.09726446 | CL14: 0.6716231484 | CM14: 4.625581143 | CN14: 8.709129993 | CO14: 2.426175514 | CP14: -2.691478067 | CQ14: 4.143765657 | CR14: 7.864432182 | CS14: 0.009538832769 | CT14: 0.239842467 | CU14: -4.427690814 | CV14: 1.363646501 | CW14: 0.4185958755 | CX14: 4.318863976 | CY14: -1.354330606 | CZ14: 0.5604782344 | DA14: - | DB14: 0.7944058671 | DC14: - | DD14: - | DE14: - | DF14: - | DG14: - | DH14: - | DI14: - | DJ14: - | DK14: - | DL14: - | DM14: - | DN14: - | DO14: - | DP14: - | DQ14: - | DR14: - | DS14: - | DT14: - | DU14: - | DV14: - | DW14: - | DX14: - | DY14: - | DZ14: - | EA14: - | EB14: -
B16: Componentes mensuales del crecimiento de la demanda Islas Canarias (%) | C16: 2011-01-01 | D16: 2011-02-01 | E16: 2011-03-01 | F16: 2011-04-01 | G16: 2011-05-01 | H16: 2011-06-01 | I16: 2011-07-01 | J16: 2011-08-01 | K16: 2011-09-01 | L16: 2011-10-01 | M16: 2011-11-01 | N16: 2011-12-01 | O16: 2011 | P16: 2012-01-01 | Q16: 2012-02-01 | R16: 2012-03-01 | S16: 2012-04-01 | T16: 2012-05-01 | U16: 2012-06-01 | V16: 2012-07-01 | W16: 2012-08-01 | X16: 2012-09-01 | Y16: 2012-10-01 | Z16: 2012-11-01 | AA16: 2012-12-01 | AB16: 2012 | AC16: 2013-01-01 | AD16: 2013-02-01 | AE16: 2013-03-01 | AF16: 2013-04-01 | AG16: 2013-05-01 | AH16: 2013-06-01 | AI16: 2013-07-01 | AJ16: 2013-08-01 | AK16: 2013-09-01 | AL16: 2013-10-01 | AM16: 2013-11-01 | AN16: 2013-12-01 | AO16: 2013 | AP16: 2014-01-01 | AQ16: 2014-02-01 | AR16: 2014-03-01 | AS16: 2014-04-01 | AT16: 2014-05-01 | AU16: 2014-06-01 | AV16: 2014-07-01 | AW16: 2014-08-01 | AX16: 2014-09-01 | AY16: 2014-10-01 | AZ16: 2014-11-01 | BA16: 2014-12-01 | BB16: 2014 | BC16: 2015-01-01 | BD16: 2015-02-01 | BE16: 2015-03-01 | BF16: 2015-04-01 | BG16: 2015-05-01 | BH16: 2015-06-01 | BI16: 2015-07-01 | BJ16: 2015-08-01 | BK16: 2015-09-01 | BL16: 2015-10-01 | BM16: 2015-11-01 | BN16: 2015-12-01 | BO16: 2015 | BP16: 2016-01-01 | BQ16: 2016-02-01 | BR16: 2016-03-01 | BS16: 2016-04-01 | BT16: 2016-05-01 | BU16: 2016-06-01 | BV16: 2016-07-01 | BW16: 2016-08-01 | BX16: 2016-09-01 | BY16: 2016-10-01 | BZ16: 2016-11-01 | CA16: 2016-12-01 | CB16: 2016 | CC16: 2017-01-01 | CD16: 2017-02-01 | CE16: 2017-03-01 | CF16: 2017-04-01 | CG16: 2017-05-01 | CH16: 2017-06-01 | CI16: 2017-07-01 | CJ16: 2017-08-01 | CK16: 2017-09-01 | CL16: 2017-10-01 | CM16: 2017-11-01 | CN16: 2017-12-01 | CO16: 2017 | CP16: 2018-01-01 | CQ16: 2018-02-01 | CR16: 2018-03-01 | CS16: 2018-04-01 | CT16: 2018-05-01 | CU16: 2018-06-01 | CV16: 2018-07-01 | CW16: 2018-08-01 | CX16: 2018-09-01 | CY16: 2018-10-01 | CZ16: 2018-11-01 | DA16: 2018-12-01 | DB16: 2018 | DC16: 2019-01-01 | DD16: 2019-02-01 | DE16: 2019-03-01 | DF16: 2019-04-01 | DG16: 2019-05-01 | DH16: 2019-06-01 | DI16: 2019-07-01 | DJ16: 2019-08-01 | DK16: 2019-09-01 | DL16: 2019-10-01 | DM16: 2019-11-01 | DN16: 2019-12-01 | DO16: 2019 | DP16: 2020-01-01 | DQ16: 2020-02-01 | DR16: 2020-03-01 | DS16: 2020-04-01 | DT16: 2020-05-01 | DU16: 2020-06-01 | DV16: 2020-07-01 | DW16: 2020-08-01 | DX16: 2020-09-01 | DY16: 2020-10-01 | DZ16: 2020-11-01 | EA16: 2020-12-01 | EB16: 2020
B17: Variación mensual | C17: -1.129964096 | D17: -0.4244014758 | E17: -1.788882294 | F17: -1.898760322 | G17: -0.5459040428 | H17: 0.8026720759 | I17: 0.8378952208 | J17: -0.9015134743 | K17: -0.8270122351 | L17: 1.615175725 | M17: -0.4901036716 | N17: 0.3911158854 | O17: -0.3572142624 | P17: 1.85135846 | Q17: 5.757135373 | R17: 0.8500802653 | S17: -1.146757904 | T17: 0.6955121902 | U17: -0.05199964293 | V17: 0.813428867 | W17: 2.501302421 | X17: 0.3558066814 | Y17: -1.897413609 | Z17: -2.254118957 | AA17: -3.682314617 | AB17: 0.2736214454 | AC17: -3.443000994 | AD17: -6.768181709 | AE17: -4.388517692 | AF17: 1.01605687 | AG17: -2.748970718 | AH17: -5.951300114 | AI17: -2.729216366 | AJ17: -3.396940952 | AK17: -5.648421709 | AL17: -4.424193251 | AM17: -5.645817906 | AN17: -7.22646063 | AO17: -4.28610292 | AP17: -1.470427287 | AQ17: -0.4947392406 | AR17: -0.7278451892 | AS17: -3.17843326 | AT17: -1.091710023 | AU17: 0.5090904462 | AV17: -2.34715711 | AW17: -2.934882505 | AX17: 3.443655435 | AY17: -3.068127392 | AZ17: 4.080056873 | BA17: 6.56143974 | BB17: -0.1316801588 | BC17: 0.9502308724 | BD17: 0.4191685092 | BE17: 0.9844730468 | BF17: -0.3242920545 | BG17: 0.9164540489 | BH17: -0.5350431288 | BI17: 4.676525386 | BJ17: 2.499398101 | BK17: 0.1324305799 | BL17: 6.727423018 | BM17: 0.9586316532 | BN17: 1.777594122 | BO17: 1.625598751 | BP17: -0.4674750989 | BQ17: 3.064001211 | BR17: 0.8877316004 | BS17: 2.523915274 | BT17: -0.3911491217 | BU17: 3.461042397 | BV17: -0.2977413294 | BW17: 3.548128009 | BX17: 0.2069936273 | BY17: 0.5774285598 | BZ17: 1.143232062 | CA17: 1.505678667 | CB17: 1.284448393 | CC17: 2.832140191 | CD17: -2.075892085 | CE17: 2.531595992 | CF17: 2.441641155 | CG17: 4.357053135 | CH17: 3.37614844 | CI17: 1.032206563 | CJ17: 2.02024808 | CK17: 1.434424386 | CL17: 3.765743906 | CM17: 3.093596639 | CN17: 0.7634524084 | CO17: 2.138132711 | CP17: 1.324192016 | CQ17: 2.585846214 | CR17: -0.9267293185 | CS17: -0.3442680241 | CT17: -1.794988364 | CU17: -3.115061886 | CV17: -1.402003859 | CW17: -3.038763921 | CX17: 0.7696292567 | CY17: -1.424797957 | CZ17: -3.127769928 | DA17: - | DB17: -1.002352622 | DC17: - | DD17: - | DE17: - | DF17: - | DG17: - | DH17: - | DI17: - | DJ17: - | DK17: - | DL17: - | DM17: - | DN17: - | DO17: - | DP17: - | DQ17: - | DR17: - | DS17: - | DT17: - | DU17: - | DV17: - | DW17: - | DX17: - | DY17: - | DZ17: - | EA17: - | EB17: -
B19: Laboralidad | C19: -0.1168707377 | D19: 0.5085532635 | E19: -0.411157374 | F19: -0.2289901607 | G19: 0.3761465351 | H19: 0.05018209071 | I19: -0.5360095981 | J19: 0.01783299521 | K19: -0.008169890583 | L19: -0.01880899246 | M19: 0.09617882453 | N19: 0.2612651815 | O19: -0.006376918482 | P19: 0.6350684056 | Q19: -0.4259002196 | R19: 0.2143759272 | S19: -0.358601377 | T19: 0.1328456758 | U19: -0.2417054599 | V19: 0.2169906683 | W19: 0.04730308438 | X19: -0.7863657068 | Y19: 0.3212612355 | Z19: 0.4076400517 | AA19: -0.7359201168 | AB19: -0.04000782919 | AC19: 0.2338764256 | AD19: -0.08683036839 | AE19: -1.390455871 | AF19: 1.533732957 | AG19: -0.07857594757 | AH19: -0.6520426249 | AI19: 0.5188857806 | AJ19: -0.3355225285 | AK19: 0.2059633005 | AL19: 0.810730384 | AM19: -0.5928474485 | AN19: -0.09382163357 | AO19: -0.2629998814 | AP19: -0.4187896049 | AQ19: 0.4556930223 | AR19: 0.4475855918 | AS19: -0.9305440549 | AT19: -0.2466825078 | AU19: 0.2764390002 | AV19: -0.3415133197 | AW19: -0.3077530309 | AX19: 0.3560079726 | AY19: 0.1116547349 | AZ19: -0.2500615184 | BA19: 0.8673856768 | BB19: -0.01178081089 | BC19: 0.09288074391 | BD19: -0.004744351869 | BE19: 0.6566900711 | BF19: 0.6173361741 | BG19: -0.1475250392 | BH19: 0.5523242232 | BI19: 0.4202337616 | BJ19: 0.2410180456 | BK19: 0.2257055902 | BL19: -0.8379798475 | BM19: 0.322122006 | BN19: -0.01756444534 | BO19: 0.1805926072 | BP19: -0.4645450234 | BQ19: 3.610847436 | BR19: 0.4404626197 | BS19: 0.1181370779 | BT19: 0.3072770199 | BU19: 0.06414532039 | BV19: -0.7815889404 | BW19: 0.379918923 | BX19: -0.02587072597 | BY19: -0.5520182513 | BZ19: 0.1192638878 | CA19: 0.05499713017 | CB19: 0.2471598048 | CC19: 0.5736623783 | CD19: -4.030370834 | CE19: 0.09591983006 | CF19: -1.55136855 | CG19: 0.1116151985 | CH19: -0.01093940776 | CI19: -0.05899185879 | CJ19: -0.08432566395 | CK19: -0.4452081603 | CL19: 0.2470571891 | CM19: -0.02317828915 | CN19: -0.8812687572 | CO19: 0.06758735921 | CP19: 0.02040469546 | CQ19: -0.05876058215 | CR19: -1.177419493 | CS19: 1.165189002 | CT19: 0.01037253996 | CU19: -0.2491496011 | CV19: 0.2447161564 | CW19: 0.1208104793 | CX19: -0.3403512775 | CY19: 0.6390586868 | CZ19: -0.09750814028 | DA19: - | DB19: 0.02784460615 | DC19: - | DD19: - | DE19: - | DF19: - | DG19: - | DH19: - | DI19: - | DJ19: - | DK19: - | DL19: - | DM19: - | DN19: - | DO19: - | DP19: - | DQ19: - | DR19: - | DS19: - | DT19: - | DU19: - | DV19: - | DW19: - | DX19: - | DY19: - | DZ19: - | EA19: - | EB19: -
B20: Temperatura | C20: -0.1589306011 | D20: -0.3416978685 | E20: -0.3977773062 | F20: -0.6314063805 | G20: -0.2204969138 | H20: 0.6291393351 | I20: -0.405535819 | J20: -0.6986975787 | K20: -0.1763088866 | L20: 0.1700646476 | M20: -0.5459913979 | N20: -0.6806473907 | O20: -0.2861971907 | P20: -0.0758898286 | Q20: 3.737059972 | R20: 0.07028482903 | S20: -0.1884024145 | T20: 0.691016646 | U20: 0.1398462006 | V20: 0.7898492474 | W20: 0.5488783892 | X20: -0.01042592881 | Y20: -0.1017878025 | Z20: 0.4327905145 | AA20: 0.2000386887 | AB20: 0.2213108863 | AC20: 0.006926793402 | AD20: -3.320723378 | AE20: 0.01843508235 | AF20: 0.8152157481 | AG20: -0.9341353421 | AH20: -1.346421322 | AI20: -0.4176668699 | AJ20: 0.4355710824 | AK20: -0.321055907 | AL20: -0.5442325902 | AM20: -0.2693413555 | AN20: -0.1536512921 | AO20: -0.4949253866 | AP20: 0.3110539307 | AQ20: 0.2770379772 | AR20: 0.04568450828 | AS20: -0.6040100138 | AT20: -0.3943212733 | AU20: -1.00132886 | AV20: -2.829692087 | AW20: -3.955123238 | AX20: -2.64588984 | AY20: -1.622148203 | AZ20: -0.6684129238 | BA20: 0.09294384931 | BB20: -1.120271588 | BC20: -0.1080306783 | BD20: 0.01934986549 | BE20: 0.01990830619 | BF20: -0.1581165287 | BG20: 0.03031021028 | BH20: -0.003062457969 | BI20: 0.3262903771 | BJ20: 0.07475386378 | BK20: 0.01425083228 | BL20: 0.0295326099 | BM20: -0.0001507204244 | BN20: -0.1643883643 | BO20: 0.007343420587 | BP20: -0.2311340201 | BQ20: -0.2352001128 | BR20: -0.03719867723 | BS20: -0.01727840035 | BT20: -0.07624470386 | BU20: 0.03147683974 | BV20: -0.0413805563 | BW20: 0.06056093986 | BX20: -0.04463396555 | BY20: -0.06181023521 | BZ20: 0.01495993878 | CA20: 0.1471386831 | CB20: -0.03948379941 | CC20: 0.1637460527 | CD20: -0.01643980154 | CE20: 0.03699109249 | CF20: 0.06991958989 | CG20: 0.008211902742 | CH20: 0.08386275851 | CI20: -0.1755642818 | CJ20: 0.04608110941 | CK20: -0.00472716185 | CL20: 0.1945776923 | CM20: -0.01525066989 | CN20: 0.02571614109 | CO20: 0.03379773329 | CP20: 0.2839928678 | CQ20: 0.3063275052 | CR20: -0.1501943603 | CS20: -0.02954015353 | CT20: -0.005250684859 | CU20: -0.108169693 | CV20: -0.05647908992 | CW20: -0.1401181492 | CX20: 0.01995664823 | CY20: -0.1924835681 | CZ20: 0.01464988823 | DA20: - | DB20: -0.02186849263 | DC20: - | DD20: - | DE20: - | DF20: - | DG20: - | DH20: - | DI20: - | DJ20: - | DK20: - | DL20: - | DM20: - | DN20: - | DO20: - | DP20: - | DQ20: - | DR20: - | DS20: - | DT20: - | DU20: - | DV20: - | DW20: - | DX20: - | DY20: - | DZ20: - | EA20: - | EB20: -
B21: Demanda corregida | C21: -0.8541627574 | D21: -0.5912568708 | E21: -0.9799476136 | F21: -1.038363781 | G21: -0.7015536641 | H21: 0.1233506501 | I21: 1.779440638 | J21: -0.2206488908 | K21: -0.6425334579 | L21: 1.46392007 | M21: -0.04029109826 | N21: 0.8104980946 | O21: -0.06539555548 | P21: 1.292179883 | Q21: 2.445975621 | R21: 0.565419509 | S21: -0.5997541125 | T21: -0.1283501316 | U21: 0.0498596164 | V21: -0.1934110488 | W21: 1.905120947 | X21: 1.152598317 | Y21: -2.116887042 | Z21: -3.094549524 | AA21: -3.146433188 | AB21: 0.09320139068 | AC21: -3.683804213 | AD21: -3.360627963 | AE21: -3.016496903 | AF21: -1.332891836 | AG21: -1.736259428 | AH21: -3.952836167 | AI21: -2.830435276 | AJ21: -3.496989506 | AK21: -5.533329102 | AL21: -4.690691045 | AM21: -4.783629102 | AN21: -6.978987704 | AO21: -3.516282253 | AP21: -1.362691612 | AQ21: -1.22747024 | AR21: -1.221115289 | AS21: -1.643879191 | AT21: -0.4507062417 | AU21: 1.233980306 | AV21: 0.8240482967 | AW21: 1.327993765 | AX21: 5.733537302 | AY21: -1.557633924 | AZ21: 4.998531316 | BA21: 5.601110214 | BB21: 1.000327235 | BC21: 0.9653808068 | BD21: 0.4045629956 | BE21: 0.3078746695 | BF21: -0.7835116998 | BG21: 1.033668878 | BH21: -1.084304894 | BI21: 3.930001247 | BJ21: 2.183626192 | BK21: -0.1075258426 | BL21: 7.535870255 | BM21: 0.6366603676 | BN21: 1.959546932 | BO21: 1.437688417 | BP21: 0.2282039446 | BQ21: -0.3116461124 | BR21: 0.4844676579 | BS21: 2.423056596 | BT21: -0.6221814377 | BU21: 3.365420237 | BV21: 0.5252281673 | BW21: 3.107648146 | BX21: 0.2774983188 | BY21: 1.191257046 | BZ21: 1.009008235 | CA21: 1.303542854 | CB21: 1.076772388 | CC21: 2.09473176 | CD21: 1.97091855 | CE21: 2.398685069 | CF21: 3.923090116 | CG21: 4.237226033 | CH21: 3.30322509 | CI21: 1.266762704 | CJ21: 2.058492635 | CK21: 1.884359709 | CL21: 3.324109025 | CM21: 3.132025599 | CN21: 1.619005024 | CO21: 2.036747618 | CP21: 1.019794453 | CQ21: 2.338279291 | CR21: 0.4008845351 | CS21: -1.479916873 | CT21: -1.800110219 | CU21: -2.757742592 | CV21: -1.590240925 | CW21: -3.019456252 | CX21: 1.090023886 | CY21: -1.871373075 | CZ21: -3.044911676 | DA21: - | DB21: -1.008328735 | DC21: - | DD21: - | DE21: - | DF21: - | DG21: - | DH21: - | DI21: - | DJ21: - | DK21: - | DL21: - | DM21: - | DN21: - | DO21: - | DP21: - | DQ21: - | DR21: - | DS21: - | DT21: - | DU21: - | DV21: - | DW21: - | DX21: - | DY21: - | DZ21: - | EA21: - | EB21: -
B23: Componentes mensuales del crecimiento de la demanda nacional (%) | C23: 2011-01-01 | D23: 2011-02-01 | E23: 2011-03-01 | F23: 2011-04-01 | G23: 2011-05-01 | H23: 2011-06-01 | I23: 2011-07-01 | J23: 2011-08-01 | K23: 2011-09-01 | L23: 2011-10-01 | M23: 2011-11-01 | N23: 2011-12-01 | O23: 2011 | P23: 2012-01-01 | Q23: 2012-02-01 | R23: 2012-03-01 | S23: 2012-04-01 | T23: 2012-05-01 | U23: 2012-06-01 | V23: 2012-07-01 | W23: 2012-08-01 | X23: 2012-09-01 | Y23: 2012-10-01 | Z23: 2012-11-01 | AA23: 2012-12-01 | AB23: 2012 | AC23: 2013-01-01 | AD23: 2013-02-01 | AE23: 2013-03-01 | AF23: 2013-04-01 | AG23: 2013-05-01 | AH23: 2013-06-01 | AI23: 2013-07-01 | AJ23: 2013-08-01 | AK23: 2013-09-01 | AL23: 2013-10-01 | AM23: 2013-11-01 | AN23: 2013-12-01 | AO23: 2013 | AP23: 2014-01-01 | AQ23: 2014-02-01 | AR23: 2014-03-01 | AS23: 2014-04-01 | AT23: 2014-05-01 | AU23: 2014-06-01 | AV23: 2014-07-01 | AW23: 2014-08-01 | AX23: 2014-09-01 | AY23: 2014-10-01 | AZ23: 2014-11-01 | BA23: 2014-12-01 | BB23: 2014 | BC23: 2015-01-01 | BD23: 2015-02-01 | BE23: 2015-03-01 | BF23: 2015-04-01 | BG23: 2015-05-01 | BH23: 2015-06-01 | BI23: 2015-07-01 | BJ23: 2015-08-01 | BK23: 2015-09-01 | BL23: 2015-10-01 | BM23: 2015-11-01 | BN23: 2015-12-01 | BO23: 2015 | BP23: 2016-01-01 | BQ23: 2016-02-01 | BR23: 2016-03-01 | BS23: 2016-04-01 | BT23: 2016-05-01 | BU23: 2016-06-01 | BV23: 2016-07-01 | BW23: 2016-08-01 | BX23: 2016-09-01 | BY23: 2016-10-01 | BZ23: 2016-11-01 | CA23: 2016-12-01 | CB23: 2016 | CC23: 2017-01-01 | CD23: 2017-02-01 | CE23: 2017-03-01 | CF23: 2017-04-01 | CG23: 2017-05-01 | CH23: 2017-06-01 | CI23: 2017-07-01 | CJ23: 2017-08-01 | CK23: 2017-09-01 | CL23: 2017-10-01 | CM23: 2017-11-01 | CN23: 2017-12-01 | CO23: 2017 | CP23: 2018-01-01 | CQ23: 2018-02-01 | CR23: 2018-03-01 | CS23: 2018-04-01 | CT23: 2018-05-01 | CU23: 2018-06-01 | CV23: 2018-07-01 | CW23: 2018-08-01 | CX23: 2018-09-01 | CY23: 2018-10-01 | CZ23: 2018-11-01 | DA23: 2018-12-01 | DB23: 2018 | DC23: 2019-01-01 | DD23: 2019-02-01 | DE23: 2019-03-01 | DF23: 2019-04-01 | DG23: 2019-05-01 | DH23: 2019-06-01 | DI23: 2019-07-01 | DJ23: 2019-08-01 | DK23: 2019-09-01 | DL23: 2019-10-01 | DM23: 2019-11-01 | DN23: 2019-12-01 | DO23: 2019 | DP23: 2020-01-01 | DQ23: 2020-02-01 | DR23: 2020-03-01 | DS23: 2020-04-01 | DT23: 2020-05-01 | DU23: 2020-06-01 | DV23: 2020-07-01 | DW23: 2020-08-01 | DX23: 2020-09-01 | DY23: 2020-10-01 | DZ23: 2020-11-01 | EA23: 2020-12-01 | EB23: 2020
B24: Variación mensual | C24: -0.6619551658 | D24: -2.500146362 | E24: -0.4697052726 | F24: -3.71036207 | G24: -0.6487866355 | H24: 1.514449788 | I24: -5.12755022 | J24: 0.3210225726 | K24: 1.315308794 | L24: -0.8862557644 | M24: -6.315387204 | N24: -6.746888371 | O24: -2.05686981 | P24: -2.217323575 | Q24: 7.474048455 | R24: -5.856595991 | S24: 1.313544419 | T24: -0.5531019442 | U24: 0.06689246894 | V24: -1.11466744 | W24: -0.2149556796 | X24: -5.520617905 | Y24: -2.772362623 | Z24: -1.677033241 | AA24: -2.388347512 | AB24: -1.171753179 | AC24: -2.39021831 | AD24: -10.51797384 | AE24: -1.006811082 | AF24: 0.01211330693 | AG24: -3.624002447 | AH24: -7.778677369 | AI24: -0.1338901862 | AJ24: -3.944026285 | AK24: -0.7449945699 | AL24: 0.09112364408 | AM24: 0.8542606997 | AN24: 1.656516806 | AO24: -2.380686197 | AP24: -2.241854506 | AQ24: -1.019122348 | AR24: -1.307034937 | AS24: -3.454635328 | AT24: 0.1716055463 | AU24: 2.396426793 | AV24: -2.586222046 | AW24: -2.144536434 | AX24: 3.151034946 | AY24: -0.5416252004 | AZ24: -3.213335723 | BA24: -1.699622399 | BB24: -1.088677619 | BC24: 2.7990045 | BD24: 3.113139616 | BE24: 1.281886529 | BF24: 0.2374575005 | BG24: 1.977912076 | BH24: 3.828683106 | BI24: 11.24059166 | BJ24: 3.560198339 | BK24: -3.427945458 | BL24: 0.4640022088 | BM24: 0.5349689952 | BN24: -2.075553125 | BO24: 1.994552026 | BP24: -5.105719354 | BQ24: -0.7641517636 | BR24: 1.38475918 | BS24: 5.636568299 | BT24: -0.6201492897 | BU24: -0.4287654908 | BV24: -5.221206283 | BW24: 2.629187561 | BX24: 6.310203723 | BY24: 0.635534434 | BZ24: 3.849107547 | CA24: 2.252621292 | CB24: 0.706870603 | CC24: 7.534118549 | CD24: -3.920298288 | CE24: -1.610872925 | CF24: -4.384173472 | CG24: 2.656384126 | CH24: 7.136414141 | CI24: 1.077409822 | CJ24: 1.81338295 | CK24: -3.098879981 | CL24: 1.739044603 | CM24: 1.399965603 | CN24: 3.991526491 | CO24: 1.209455962 | CP24: -2.137463051 | CQ24: 6.629413235 | CR24: 4.540205878 | CS24: 4.807800445 | CT24: -0.7271242602 | CU24: -6.196856137 | CV24: -1.010089912 | CW24: 0.7459769056 | CX24: 3.002789221 | CY24: 0.5404041211 | CZ24: 0.1041267942 | DA24: - | DB24: 0.812770656 | DC24: - | DD24: - | DE24: - | DF24: - | DG24: - | DH24: - | DI24: - | DJ24: - | DK24: - | DL24: - | DM24: - | DN24: - | DO24: - | DP24: - | DQ24: - | DR24: - | DS24: - | DT24: - | DU24: - | DV24: - | DW24: - | DX24: - | DY24: - | DZ24: - | EA24: - | EB24: -
B26: Laboralidad | C26: 0.3324162982 | D26: -0.03909256351 | E26: 0.7158889404 | F26: -0.5360689288 | G26: 0.2468216172 | H26: 0.02646239837 | I26: -1.066660212 | J26: 0.3269007717 | K26: 0.5259284449 | L26: 0.1226288865 | M26: 0.07706852147 | N26: 0.7180571058 | O26: 0.1312403691 | P26: 1.496597061 | Q26: 3.403945952 | R26: -1.035723167 | S26: -0.7226324586 | T26: 0.2522773831 | U26: -0.2133276866 | V26: 0.2266382978 | W26: -0.05189881884 | X26: -1.572245434 | Y26: 0.164136524 | Z26: -0.8321674245 | AA26: -1.051121811 | AB26: -0.2619767551 | AC26: 0.4070702239 | AD26: -2.838094159 | AE26: -2.631999908 | AF26: 3.163672661 | AG26: 0.101296531 | AH26: -1.210172632 | AI26: 1.832905952 | AJ26: 0.09854227597 | AK26: 0.9205517455 | AL26: 2.136766774 | AM26: 0.6455722236 | AN26: -0.2224225612 | AO26: 0.1707630576 | AP26: -1.008578975 | AQ26: 0.05281299052 | AR26: 2.254308978 | AS26: -2.007808346 | AT26: -0.7588761979 | AU26: 0.2390772047 | AV26: 0.1433466385 | AW26: -0.6047551951 | AX26: 0.9533499609 | AY26: -0.07164174347 | AZ26: -0.2240921906 | BA26: 0.8276443115 | BB26: 0.001808773263 | BC26: -1.110136918 | BD26: 0.03329045582 | BE26: 0.1929230656 | BF26: 0.6931694379 | BG26: -0.2902414085 | BH26: 0.9460001134 | BI26: 0.1061353369 | BJ26: 0.4471466097 | BK26: -0.07556244638 | BL26: -1.105314321 | BM26: 0.2584452663 | BN26: -0.6044536954 | BO26: -0.04791228624 | BP26: 0.02290863254 | BQ26: 3.681853599 | BR26: -1.431965852 | BS26: 2.071765198 | BT26: 0.8109474106 | BU26: 0.293940466 | BV26: -1.180177151 | BW26: 1.475336813 | BX26: 0.3120736286 | BY26: -0.8452069458 | BZ26: 0.3532839372 | CA26: 1.620829519 | CB26: 0.5651119218 | CC26: 1.114264453 | CD26: -0.2512173145 | CE26: 2.542958569 | CF26: -3.533870945 | CG26: 0.4788208345 | CH26: 0.2627431883 | CI26: -0.1649924102 | CJ26: -0.1911021129 | CK26: -0.4701145076 | CL26: 0.1757227607 | CM26: 0.3139797294 | CN26: -1.393710877 | CO26: -0.3292575615 | CP26: 1.438919019 | CQ26: -0.1337158188 | CR26: -2.739174277 | CS26: 2.198328003 | CT26: -0.4036455461 | CU26: -0.4715476797 | CV26: -0.6562722708 | CW26: -1.376402616 | CX26: -1.746863676 | CY26: 0.8620299856 | CZ26: -0.4221708503 | DA26: - | DB26: -0.3151570692 | DC26: - | DD26: - | DE26: - | DF26: - | DG26: - | DH26: - | DI26: - | DJ26: - | DK26: - | DL26: - | DM26: - | DN26: - | DO26: - | DP26: - | DQ26: - | DR26: - | DS26: - | DT26: - | DU26: - | DV26: - | DW26: - | DX26: - | DY26: - | DZ26: - | EA26: - | EB26: -
B27: Temperatura | C27: -1.184018234 | D27: -3.892025793 | E27: -0.8173647563 | F27: -1.766433035 | G27: -0.826937635 | H27: 1.335525614 | I27: -2.832339847 | J27: -0.04193739841 | K27: 2.144877541 | L27: 2.544433048 | M27: -2.951012936 | N27: -3.258907973 | O27: -1.01076966 | P27: -1.646113155 | Q27: 4.737550239 | R27: -2.851162115 | S27: 2.328492898 | T27: 1.49470513 | U27: 2.059018483 | V27: 1.243288284 | W27: 1.56824339 | X27: -1.255114609 | Y27: -1.617850842 | Z27: 1.989866703 | AA27: 1.039043943 | AB27: 0.6962040147 | AC27: 0.9987991443 | AD27: -1.901997698 | AE27: 3.754913614 | AF27: -0.2153404704 | AG27: -1.532319415 | AH27: -4.122192709 | AI27: 1.270337352 | AJ27: -1.659545202 | AK27: -0.1491153201 | AL27: -0.1238666893 | AM27: 0.1686875272 | AN27: 0.3785030011 | AO27: -0.2954900049 | AP27: -0.6384479449 | AQ27: -0.801227583 | AR27: -3.295696342 | AS27: -1.839144671 | AT27: -1.368938339 | AU27: 1.885401832 | AV27: -2.522352799 | AW27: -1.366994205 | AX27: 0.6067938891 | AY27: 0.8270764327 | AZ27: -2.130275712 | BA27: -0.4898550743 | BB27: -0.9672187586 | BC27: 0.4821515391 | BD27: 1.969636982 | BE27: 1.014248636 | BF27: -0.6447238616 | BG27: 2.524953403 | BH27: 2.417979987 | BI27: 5.451726313 | BJ27: 0.8056461023 | BK27: -2.789755801 | BL27: -2.226668544 | BM27: -1.109695189 | BN27: -3.897501477 | BO27: 0.360737714 | BP27: -1.872436141 | BQ27: -3.282549289 | BR27: 0.8597881475 | BS27: 1.081758618 | BT27: -1.348670268 | BU27: -0.7393006049 | BV27: -1.016934953 | BW27: 0.6970680742 | BX27: 2.090774509 | BY27: 0.4176662067 | BZ27: 2.300786919 | CA27: 2.427406332 | CB27: 0.04889790649 | CC27: 1.253225781 | CD27: -5.583385007 | CE27: -2.666449366 | CF27: -0.7692017292 | CG27: 1.52007171 | CH27: 2.413601623 | CI27: 0.004083259847 | CJ27: 0.2407673219 | CK27: -1.040485787 | CL27: 1.116440237 | CM27: -1.928655813 | CN27: 0.1315556655 | CO27: -0.1275760804 | CP27: -1.634100645 | CQ27: 3.751964354 | CR27: 2.370192713 | CS27: 1.086939393 | CT27: -1.501422414 | CU27: -2.60145691 | CV27: -0.3467378364 | CW27: 0.6264799644 | CX27: 1.781618884 | CY27: -0.199547818 | CZ27: 1.430855269 | DA27: - | DB27: 0.3542658623 | DC27: - | DD27: - | DE27: - | DF27: - | DG27: - | DH27: - | DI27: - | DJ27: - | DK27: - | DL27: - | DM27: - | DN27: - | DO27: - | DP27: - | DQ27: - | DR27: - | DS27: - | DT27: - | DU27: - | DV27: - | DW27: - | DX27: - | DY27: - | DZ27: - | EA27: - | EB27: -
B28: Demanda corregida | C28: 0.1896467696 | D28: 1.430971994 | E28: -0.3682294567 | F28: -1.407860105 | G28: -0.06867061773 | H28: 0.1524617755 | I28: -1.228550161 | J28: 0.0360591993 | K28: -1.355497192 | L28: -3.553317699 | M28: -3.44144279 | N28: -4.206037503 | O28: -1.177340519 | P28: -2.06780748 | Q28: -0.6674477361 | R28: -1.969710709 | S28: -0.2923160205 | T28: -2.300084457 | U28: -1.778798328 | V28: -2.584594022 | W28: -1.731300251 | X28: -2.693257861 | Y28: -1.318648305 | Z28: -2.834732519 | AA28: -2.376269645 | AB28: -1.605980438 | AC28: -3.796087678 | AD28: -5.777881979 | AE28: -2.129724788 | AF28: -2.936218884 | AG28: -2.192979563 | AH28: -2.446312028 | AI28: -3.23713349 | AJ28: -2.383023359 | AK28: -1.516430995 | AL28: -1.921776441 | AM28: 0.04000094894 | AN28: 1.500436366 | AO28: -2.25595925 | AP28: -0.5948275857 | AQ28: -0.270707756 | AR28: -0.2656475726 | AS28: 0.39231769 | AT28: 2.299420083 | AU28: 0.2719477559 | AV28: -0.2072158851 | AW28: -0.1727870338 | AX28: 1.590891096 | AY28: -1.29705989 | AZ28: -0.8589678204 | BA28: -2.037411636 | BB28: -0.1232676337 | BC28: 3.426989879 | BD28: 1.110212178 | BE28: 0.07471482726 | BF28: 0.1890119242 | BG28: -0.2567999183 | BH28: 0.4647030055 | BI28: 5.682730014 | BJ28: 2.307405627 | BK28: -0.5626272102 | BL28: 3.795985074 | BM28: 1.386218918 | BN28: 2.426402047 | BO28: 1.681726598 | BP28: -3.256191845 | BQ28: -1.163456073 | BR28: 1.956936884 | BS28: 2.483044483 | BT28: -0.08242643279 | BU28: 0.01659464803 | BV28: -3.024094179 | BW28: 0.4567826731 | BX28: 3.907355585 | BY28: 1.063075173 | BZ28: 1.195036692 | CA28: -1.795614559 | CB28: 0.09286077474 | CC28: 5.166628315 | CD28: 1.914304034 | CE28: -1.487382129 | CF28: -0.08110079776 | CG28: 0.6574915823 | CH28: 4.460069329 | CI28: 1.238318973 | CJ28: 1.763717741 | CK28: -1.588279686 | CL28: 0.4468816054 | CM28: 3.014641686 | CN28: 5.253681702 | CO28: 1.666289604 | CP28: -1.942281425 | CQ28: 3.0111647 | CR28: 4.909187443 | CS28: 1.522533049 | CT28: 1.1779437 | CU28: -3.123851547 | CV28: -0.007079804929 | CW28: 1.495899557 | CX28: 2.968034012 | CY28: -0.1220780466 | CZ28: -0.904557624 | DA28: - | DB28: 0.773661863 | DC28: - | DD28: - | DE28: - | DF28: - | DG28: - | DH28: - | DI28: - | DJ28: - | DK28: - | DL28: - | DM28: - | DN28: - | DO28: - | DP28: - | DQ28: - | DR28: - | DS28: - | DT28: - | DU28: - | DV28: - | DW28: - | DX28: - | DY28: - | DZ28: - | EA28: - | EB28: -
B30: Componentes anuales del crecimiento de la demanda peninsular (%) | C30: 1991 | D30: 1992 | E30: 1993 | F30: 1994 | G30: 1995 | H30: 1996 | I30: 1997 | J30: 1998 | K30: 1999 | L30: 2000 | M30: 2001 | N30: 2002 | O30: 2003 | P30: 2004 | Q30: 2005 | R30: 2006 | S30: 2007 | T30: 2008 | U30: 2009 | V30: 2010 | W30: 2011 | X30: 2012 | Y30: 2013 | Z30: 2014 | AA30: 2015 | AB30: 2016 | AC30: 2017 | AD30: 2018 | AE30: 2019 | AF30: 2020
B31: Variación anual | C31: 3.876 | D31: 0.906 | E31: 0.117 | F31: 3.565 | G31: 3.756 | H31: 2.949 | I31: 3.94 | J31: 6.584 | K31: 6.507 | L31: 5.794 | M31: 5.449 | N31: 2.892 | O31: 6.749 | P31: 4.489 | Q31: 4.325 | R31: 3.573 | S31: 2.924 | T31: 1.055 | U31: -4.731 | V31: 3.113747512 | W31: -2.120920672 | X31: -1.286742187 | Y31: -2.304084066 | Z31: -1.11657033 | AA31: 1.972072016 | AB31: 0.6895440492 | AC31: 1.132055813 | AD31: 0.8605065559 | AE31: - | AF31: -
B33: Laboralidad | C33: -0.009 | D33: 0.398 | E33: -0.251 | F33: -0.117 | G33: -0.034 | H33: 0.204 | I33: -0.206 | J33: -0.269 | K33: 0.368 | L33: 0.213 | M33: -0.312 | N33: 0.013 | O33: 0.148 | P33: 0.394 | Q33: -0.357 | R33: -0.095 | S33: -0.042 | T33: 0.4 | U33: -0.484 | V33: 0.05471488212 | W33: 0.1399598903 | X33: -0.2752330108 | Y33: 0.192815811 | Z33: -0.003073060092 | AA33: -0.06084387881 | AB33: 0.5843869624 | AC33: -0.3421463677 | AD33: -0.336304488 | AE33: - | AF33: -
B34: Temperatura | C34: 1.465 | D34: -0.731 | E34: 0.495 | F34: -1.446 | G34: -0.736 | H34: 0.181 | I34: -1.222 | J34: 0.559 | K34: 0.786 | L34: -0.758 | M34: 0.477 | N34: -1.124 | O34: 1.146 | P34: -0.129 | Q34: 1.551 | R34: -0.949 | S34: -1.295 | T34: -0.058 | U34: 0.441 | V34: 0.3968313055 | W34: -1.025588359 | X34: 0.6935701808 | Y34: -0.2720628307 | Z34: -0.9883665227 | AA34: 0.3593659769 | AB34: 0.09209359016 | AC34: -0.1664855352 | AD34: 0.3628145955 | AE34: - | AF34: -
B35: Demanda corregida | C35: 2.42 | D35: 1.239 | E35: -0.127 | F35: 5.128 | G35: 4.526 | H35: 2.564 | I35: 5.368 | J35: 6.294 | K35: 5.353 | L35: 6.339 | M35: 5.284 | N35: 4.003 | O35: 5.455 | P35: 4.224 | Q35: 3.131 | R35: 4.617 | S35: 4.261 | T35: 0.713 | U35: -4.688 | V35: 2.662201324 | W35: -1.23321508 | X35: -1.701000906 | Y35: -2.222821705 | Z35: -0.1257412732 | AA35: 1.687046361 | AB35: 0.01306349673 | AC35: 1.640687716 | AD35: 0.8339964485 | AE35: - | AF35: -
B37: Componentes anuales del crecimiento de la demanda Islas Baleares (%) | C37: 2011 | D37: 2012 | E37: 2013 | F37: 2014 | G37: 2015 | H37: 2016 | I37: 2017 | J37: 2018 | K37: 2019 | L37: 2020
B38: Variación anual | C38: -1.717467165 | D38: 1.418351486 | E38: -2.654473816 | F38: -1.577503212 | G38: 3.773958005 | H38: 0.6085303347 | I38: 3.318203632 | J38: 1.401423959 | K38: - | L38: -
B40: Laboralidad | C40: -0.04427113824 | D40: -0.02666060447 | E40: -0.1367385641 | F40: 0.2357214352 | G40: 0.1662062103 | H40: 0.2147095695 | I40: -0.3765305747 | J40: 0.06517618915 | K40: - | L40: -
B41: Temperatura | C41: -1.470159698 | D41: 1.53528161 | E41: -1.01447582 | F41: 0.1895269061 | G41: 0.9467205084 | H41: -1.673589463 | I41: 1.268558692 | J41: 0.5418419025 | K41: - | L41: -
B42: Demanda corregida | C42: -0.1928554071 | D42: -0.0964948893 | E42: -1.505471287 | F42: -2.002751273 | G42: 2.66064916 | H42: 2.067410228 | I42: 2.426175514 | J42: 0.7944058671 | K42: - | L42: -
B44: Componentes anuales del crecimiento de la demanda Islas Canarias (%) | C44: 2011 | D44: 2012 | E44: 2013 | F44: 2014 | G44: 2015 | H44: 2016 | I44: 2017 | J44: 2018 | K44: 2019 | L44: 2020
B45: Variación anual | C45: -0.3572142624 | D45: 0.2736214454 | E45: -4.28610292 | F45: -0.1316801588 | G45: 1.625598751 | H45: 1.284448393 | I45: 2.138132711 | J45: -1.002352622 | K45: - | L45: -
B47: Laboralidad | C47: -0.006376918482 | D47: -0.04000782919 | E47: -0.2629998814 | F47: -0.01178081089 | G47: 0.1805926072 | H47: 0.2471598048 | I47: 0.06758735921 | J47: 0.02784460615 | K47: - | L47: -
B48: Temperatura | C48: -0.2861971907 | D48: 0.2213108863 | E48: -0.4949253866 | F48: -1.120271588 | G48: 0.007343420587 | H48: -0.03948379941 | I48: 0.03379773329 | J48: -0.02186849263 | K48: - | L48: -
B49: Demanda corregida | C49: -0.06539555548 | D49: 0.09320139068 | E49: -3.516282253 | F49: 1.000327235 | G49: 1.437688417 | H49: 1.076772388 | I49: 2.036747618 | J49: -1.008328735 | K49: - | L49: -
B51: Componentes anuales del crecimiento de la demanda nacional (%) | C51: 2011 | D51: 2012 | E51: 2013 | F51: 2014 | G51: 2015 | H51: 2016 | I51: 2017 | J51: 2018 | K51: 2019 | L51: 2020
B52: Variación mensual | C52: -2.05686981 | D52: -1.171753179 | E52: -2.380686197 | F52: -1.088677619 | G52: 1.994552026 | H52: 0.706870603 | I52: 1.209455962 | J52: 0.812770656 | K52: - | L52: -
B54: Laboralidad | C54: 0.1312403691 | D54: -0.2619767551 | E54: 0.1707630576 | F54: 0.001808773263 | G54: -0.04791228624 | H54: 0.5651119218 | I54: -0.3292575615 | J54: -0.3151570692 | K54: - | L54: -
B55: Temperatura | C55: -1.01076966 | D55: 0.6962040147 | E55: -0.2954900049 | F55: -0.9672187586 | G55: 0.360737714 | H55: 0.04889790649 | I55: -0.1275760804 | J55: 0.3542658623 | K55: - | L55: -
B56: Demanda corregida | C56: -1.177340519 | D56: -1.605980438 | E56: -2.25595925 | F56: -0.1232676337 | G56: 1.681726598 | H56: 0.09286077474 | I56: 1.666289604 | J56: 0.773661863 | K56: - | L56: -

Sheet Año (hidden)
X1: 1 | Y1: 1 | Z1: 1
A2: Mensual | B2: 1991 | C2: 1991-2000 | O2: Nacional | P2: Mensual
A3: Trimestral | B3: 1992 | C3: 2001-2010 | O3: Peninsular | P3: Anual
A4: Anual | B4: 1993 | C4: 2011-2020 | D4: 2011-2020 | O4: Canarias
B5: 1994 | O5: Baleares
B6: 1995
B7: 1996
B8: 1997
B9: 1998
B10: 1999
B11: 2000
B12: 2001
B13: 2002
B14: 2003
B15: 2004
B16: 2005
B17: 2006
B18: 2007
B19: 2008
B20: 2009
B21: 2010
B22: 2011
B23: 2012
B24: 2013
B25: 2014
B26: 2015
B27: 2016
B28: 2017
B29: 2018
